Cogmind - Beta 17.1 @@@ ROGUE MODE // 2026.09.14 @ 02:33:26 Player: Kite Result: Core destroyed Performance ------------- Evolutions (9) 4500 Regions Visited (28) 5600 Robots Destroyed (538) 2690 Value Destroyed (24202) 24202 Prototype IDs (92) 1840 Alien Tech Used (15) 3000 Bonus (24642) 24642 TOTAL SCORE: 66474 Bonus ------- High Alert Combat Kills 3061 Follower Combat Kills 4250 Hunted by Unchained 500 Network Hubs Disabled 200 Registered with UFD 300 Met Optimus in HQ 500 MAIN.C Attacked Warlord 500 Warlord Defense Kills 2430 Built Enhanced Grunts 300 Met R17 at Cetus 500 Used Core Reset Matrix 3000 Met R17 at Research 2000 Met MAIN.C 5000 Destroyed MAIN.C Shell 5000 Friendly Fire -2899 Cogmind --------- Core Integrity 0/1600 Matter 175/300 Energy 162/350 System Corruption 0% +Membrane Temperature Cool (0) +ITN Movement Core (250) Ox4 Location -1/Command Parts ------- > --- POWER (3) -------- (None) > --- PROPULSION (5) --- (None) > --- UTILITY (12) ----- Huge Storage Unit Experimental Core Analyzer Improved Armor Integrity Analyzer Microactuators Graphene Brace Microwarp Drive > --- WEAPON (5) ------- Plasma Sword (fused) Enhanced Force Lance > --- INVENTORY (25) --- Advanced Sensor Array Advanced ECM Suite Transdimensional Reconstructor Transdimensional Reconstructor Spacefold Activator Fusion Bomb Launcher Impact Mace Peak State ------------ > --- POWER ------------ Vortex Chain Reactor Matter Drive > --- PROPULSION ------- Centrium Heavy Treads Centrium Heavy Treads Experimental Biometal Medium Treads > --- UTILITY ---------- Huge Storage Unit Experimental Signal Interpreter Advanced Terrain Scan Processor Advanced Melee Analysis Suite Experimental Core Analyzer Advanced Actuator Array Experimental Transmission Jammer Heavy Regenerative Plating Graphene Brace Experimental EM Shield A0-MCA's Component Scanner > --- WEAPON ----------- Plasma Sword Plasma Sword Plasma Sword Sigix Broadsword > --- INVENTORY -------- Quantum Reactor Improved Quantum Reactor Biometal Heavy Treads High-density Centrium Heavy Treads Experimental Biometal Medium Treads Experimental Biometal Medium Treads Advanced Sensor Array Advanced Sensor Array Terrain Scanner Actuator Array Advanced Force Field Transdimensional Reconstructor Transdimensional Reconstructor Spacefold Activator Microwarp Drive Enhanced Nova Cannon Fusion Bomb Launcher Sigix Broadsword Enhanced Force Lance [Rating: 239] Favorites ----------- Power Quantum Reactor Engine Improved Deuterium Engine Power Core Neutrino Core Reactor Quantum Reactor Propulsion Light Treads Treads Light Treads Wheel Wheel Utility Huge Storage Unit Device Advanced Sensor Array Storage Huge Storage Unit Processor Melee Analysis Suite Hackware Hacking Suite Protection Medium Regenerative Plating Artifact Spacefold Activator Weapon Plasma Sword Energy Gun Medium Laser Energy Cannon Particle Cannon Ballistic Gun Autogun Ballistic Cannon Bore Cannon Launcher Missile Launcher Special Weapon Experimental Plasma Cutter Impact Weapon Heavy Hammer Slashing Weapon Plasma Sword Piercing Weapon Enhanced Force Lance Build | -11 -10 -10 -9 -9 -8 -7 -7 -7 -7 -5 -5 -5 -5 -5 -4 -4 -4 -4 -4 -4 -3 -3 -3 -2 -2 -2 -1 -1 ------- Run | Yrd Mat Min Mat Min Mat Fac Sto Rec Scr Fac Ext Cet Arc Hub Fac Was Fac Upp Upp War Pro Res Qua Res Tes Sec Acc Com Slots Evolved 18 | . . . 2 . 2 2 . . . 4 . . . . 2 . . . . . . 2 . 2 . . 2 . Power 2 | . . . . . . . . . . 1 . . . . . . . . . . . . . 1 . . . . Propulsion 3 | . . . 1 . 1 1 . . . . . . . . . . . . . . . . . . . . . . Utility 10 | . . . 1 . . 1 . . . 3 . . . . . . . . . . . 2 . 1 . . 2 . Weapon 3 | . . . . . 1 . . . . . . . . . 2 . . . . . . . . . . . . . Parts Attached 326 | 6 9 2 30 2 16 8 25 10 8 49 10 12 7 1 7 2 5 1 1 10 6 13 20 10 13 19 13 11 Power 55 | 1 3 . 2 . 3 1 6 1 1 9 2 2 . . . . . . . 1 1 3 5 3 6 3 . 2 Engine 21 | 1 3 . 2 . 2 1 4 1 1 4 . . . . . . . . . . . . . 1 1 . . . Core 9 | . . . . . 1 . 2 . . 4 2 . . . . . . . . . . . . . . . . . Reactor 25 | . . . . . . . . . . 1 . 2 . . . . . . . 1 1 3 5 2 5 3 . 2 Propulsion 82 | 2 1 . 10 . 5 2 11 5 4 14 3 2 3 . 1 2 . . . 3 . 1 2 1 2 5 2 1 Treads 73 | 2 1 . 10 . 5 . 11 5 4 7 3 2 3 . 1 2 . . . 3 . 1 2 1 2 5 2 1 Leg . | . . . . . . . . . . . . . . . . . . . . . . . . . . . . . Wheel 9 | . . . . . . 2 . . . 7 . . . . . . . . . . . . . . . . . . Hover . | . . . . . . . . . . . . . . . . . . . . . . . . . . . . . Flight . | . . . . . . . . . . . . . . . . . . . . . . . . . . . . . Utility 129 | 1 3 . 9 2 6 5 5 2 1 18 1 3 4 1 5 . 4 . 1 4 3 7 8 6 4 8 10 8 Device 59 | . 2 . 1 . 1 1 1 1 . 9 . . 4 . 2 . 3 . 1 1 3 5 5 2 3 4 4 6 Storage 11 | 1 1 . 1 . 1 1 1 . . . . . . . 1 . . . . . . 1 1 . . 1 1 . Processor 24 | . . . 2 1 1 1 . 1 . 1 . 1 . . 1 . 1 . . 1 . 1 2 2 1 1 4 2 Hackware 8 | . . . . . 1 . 1 . 1 2 . . . 1 . . . . . . . . . 2 . . . . Protection 25 | . . . 5 1 2 2 2 . . 6 1 2 . . 1 . . . . 2 . . . . . 1 . . Artifact 2 | . . . . . . . . . . . . . . . . . . . . . . . . . . 1 1 . Weapon 60 | 2 2 2 9 . 2 . 3 2 2 8 4 5 . . 1 . 1 1 . 2 2 2 5 . 1 3 1 . Energy Gun 3 | 2 . . . . . . . . . . . . . . . . . . . 1 . . . . . . . . Energy Cannon 7 | . 2 . 2 . . . . . . . . . . . . . . . . . . 1 1 . . 1 . . Ballistic Gun 2 | . . . 1 . . . . . . . . . . . . . . . . 1 . . . . . . . . Ballistic Cannon 3 | . . . . . . . . . . . 2 . . . . . . . . . . . . . . 1 . . Launcher 10 | . . 2 3 . . . 1 . . 1 2 . . . . . . . . . . . 1 . . . . . Special Weapon 5 | . . . . . . . . . 1 2 . 2 . . . . . . . . . . . . . . . . Impact Weapon 8 | . . . 2 . 1 . 1 . . 1 . . . . . . . . . . 1 . . . 1 . 1 . Slashing Weapon 20 | . . . 1 . 1 . 1 2 1 4 . 3 . . 1 . 1 1 . . 1 . 2 . . 1 . . Piercing Weapon 2 | . . . . . . . . . . . . . . . . . . . . . . 1 1 . . . . . Special Melee Weapon . | . . . . . . . . . . . . . . . . . . . . . . . . . . . . . Unidentified Prototypes 14 | . . . 3 . . . 2 . 1 2 . 3 . . 1 . . . . . . . 2 . . . . . Corrupted Parts 4 | . . . . . . . . . 2 . . . 1 . . . . . . . . . 1 . . . . . System Corruption 11 | . . . . . . . . . 2 . . . 1 . . . . . . . . . 8 . . . . . Parts Lost 105 | . 3 . 10 . 5 . 6 3 . 28 2 1 . . . . . . . 6 . 2 3 5 . 2 5 24 Power 22 | . 2 . 1 . 3 . 1 . . 7 1 . . . . . . . . . . . 1 1 . . 1 4 Propulsion 34 | . 1 . 3 . 2 . 4 2 . 11 . 1 . . . . . . . 1 . 1 . . . 1 . 7 Utility 41 | . . . 5 . . . 1 1 . 8 1 . . . . . . . . 3 . 1 2 4 . 1 4 10 Weapon 8 | . . . 1 . . . . . . 2 . . . . . . . . . 2 . . . . . . . 3 Highest Loss Streak 23 | . 1 . 3 . 3 . 2 2 . 7 1 1 . . . . . . . 3 . 1 2 2 . 1 2 23 To Critical Strikes 2 | . . . 1 . . . . . . . . 1 . . . . . . . . . . . . . . . . Average Backups 19 | 1 8 10 12 15 17 23 24 24 19 22 24 22 20 21 19 19 19 19 19 18 17 20 20 20 19 19 18 17 Power . | . . 1 . . . . . 1 1 . . . . . . . . . . . 1 1 . . 1 1 1 1 Propulsion 4 | . 2 3 2 6 5 3 6 6 4 4 3 3 5 5 5 5 6 6 6 5 5 4 4 4 4 4 4 3 Utility 7 | . . 1 2 2 6 10 9 8 7 7 8 9 8 9 9 9 7 8 8 7 6 8 6 6 6 8 8 7 Weapon 5 | . 4 5 6 7 5 8 8 8 5 6 8 8 6 6 4 4 4 4 4 3 2 4 5 5 5 4 3 2 Tool/Special . | . . . . . . . . . . . . . . . . . . . . . . . . . . . . . Unused Backups 74 | . 1 . 4 . 6 . 2 . 17 7 4 3 . . . 1 2 . . . . 5 3 3 2 5 7 2 Power 9 | . . . . . . . . . 3 . . . . . . . . . . . . 1 . . 1 1 3 . Propulsion 13 | . . . 2 . 1 . . . 2 3 2 . . . . . . . . . . 1 . . . 2 . . Utility 31 | . . . 1 . 2 . 2 . 8 2 . 3 . . . 1 1 . . . . 3 1 1 1 2 3 . Weapon 18 | . 1 . 1 . 3 . . . 4 2 2 . . . . . 1 . . . . . 1 2 . . 1 . Tool/Special 3 | . . . . . . . . . . . . . . . . . . . . . . . 1 . . . . 2 Average Slot Usage (%) 91 | . 96 100 96 100 99 92 92 99 98 96 99 98 91 94 93 92 88 89 89 87 87 89 88 81 82 81 79 77 Engine 3 | . 13 14 9 11 6 . 3 7 7 4 . . . . . . . . . . . . . . 1 . . . Core 1 | . . . . . 1 6 3 . . 3 6 6 . . . . . . . . . . . . . . . . Reactor 4 | . . . . . . . . . . . 3 3 11 11 10 10 10 10 10 10 10 9 8 7 7 7 8 7 Treads 22 | . 28 28 32 33 35 20 25 37 38 24 18 27 23 23 21 18 15 15 15 15 15 13 13 13 13 15 12 11 Wheel 1 | . . . . . . 10 6 . . 4 10 . . . . . . . . . . . . . . . . . Device 10 | . 10 14 7 . . . . . . 10 16 14 12 15 15 15 17 21 21 13 8 22 17 13 15 13 18 20 Storage 6 | . 14 14 11 11 9 7 7 7 7 5 5 5 5 5 5 5 5 5 5 5 5 4 4 4 4 4 4 4 Processor 10 | . . . 2 11 9 7 7 6 7 10 11 13 15 11 8 5 5 5 5 8 10 9 14 17 17 17 17 14 Hackware 2 | . . . . . . 4 6 7 14 5 . . . 1 5 5 2 . . . . . . . . . . . Protection 4 | . . . 9 11 8 9 7 7 . 4 4 5 3 5 . 5 4 5 5 6 11 4 4 5 5 4 3 3 Energy Cannon 2 | . 25 26 17 . . . . . . . . . . . . . . . . . . 1 . . . . . . Impact Weapon 2 | . . . 1 11 16 7 7 . . 3 . . . . . . . . . . 1 2 . . . . 1 2 Slashing Weapon 15 | . . . 1 11 10 15 14 22 21 11 15 13 17 16 25 25 23 21 21 20 23 17 17 13 15 16 14 10 Peak Build Rating 239 | 6 12 12 19 17 29 42 45 39 47 80 92 116 115 115 136 143 145 143 143 150 149 167 179 199 223 228 239 234 Average Rating 106 | 5 10 11 16 16 23 38 42 38 41 61 86 94 112 114 129 136 140 141 142 145 145 159 159 191 194 209 227 216 On Entrance 100 | . 6 12 12 16 17 28 42 38 38 47 80 91 113 115 115 136 138 143 141 143 140 139 167 178 187 201 216 225 Avg Prop Armor Cover (%) 13 | . . . 7 . . 14 19 . 7 12 11 . 10 . . . . . . . . . 10 . . . . 4 Naked Turns . | . . . . . . . . . . . . . . . . . . . . . . . . . . . . . Heaviest Build 214 | 11 22 22 40 31 63 113 108 106 101 132 141 141 147 147 159 163 163 166 166 180 153 167 172 187 198 199 198 214 Greatest Support 230 | 40 40 40 60 60 80 100 100 100 110 125 133 162 162 162 162 182 177 177 177 182 182 187 185 185 205 230 220 225 Greatest Overweight (x) 11 | 1 . . 1 . 1 3 3 1 1 11 4 1 1 . . 1 . . . . . . 1 1 1 1 1 4 Average Overweight (x) . | . . . . . . 1 2 1 . 1 2 . . . . . . . . . . . . . . . . . Largest Inventory Capacity 25 | 8 10 10 15 15 20 25 25 25 25 25 25 25 25 25 25 25 25 25 25 25 25 25 25 25 25 25 25 25 Average Capacity 23 | 7 9 10 14 15 18 24 25 25 25 25 25 25 25 25 25 25 25 25 25 25 25 25 25 25 25 25 25 25 Most Carried 25 | 4 10 10 15 15 20 25 25 25 25 25 25 25 25 25 25 25 25 25 25 25 25 25 25 25 25 25 25 25 Average Carried 21 | 2 8 10 12 14 17 23 24 24 20 22 24 24 24 25 23 24 24 25 25 24 22 24 24 24 24 24 24 23 Final Capacity 25 | 8 10 10 15 15 20 25 25 25 25 25 25 25 25 25 25 25 25 25 25 25 25 25 25 25 25 25 25 25 Final Carried 25 | 4 10 10 15 15 20 25 25 25 25 25 25 25 25 25 25 25 25 25 25 22 25 25 25 25 25 25 25 7 Class Distribution -------------------- 34% | Scavenger-Gladiator 15% | Alien-Gladiator 12% | Gladiator 9% | Mutant 8% | Commander-Mutant 7% | Scavenger-Mutant 6% | Commander-Gladiator 4% | Assassin Dominant Class ---------------- Mutant | -10/Materials Mutant | -10/Mines Mutant | -9/Materials Scavenger-Gladiator | -9/Mines Scavenger-Gladiator | -8/Materials Scavenger-Gladiator | -7/Factory Scavenger-Gladiator | -7/Storage Scavenger-Gladiator | -7/Recycling Gladiator | -7/Scraptown Scavenger-Gladiator | -5/Factory Scavenger-Gladiator | -5/Extension Commander-Gladiator | -5/Cetus Commander-Gladiator | -5/Archives Commander-Mutant | -5/Hub_04(d) Scavenger-Mutant | -4/Factory Commander-Mutant | -4/Waste Commander-Mutant | -4/Factory Commander-Mutant | -4/Upper Caves Commander-Mutant | -4/Upper Caves Scavenger-Mutant | -4/Warlord Scavenger-Mutant | -3/Proximity Caves Scavenger-Gladiator | -3/Research Assassin | -3/Quarantine Assassin | -2/Research Scavenger-Gladiator | -2/Testing Alien-Gladiator | -2/Section 7 Alien-Gladiator | -1/Access Alien-Gladiator | -1/Command Resources | -11 -10 -10 -9 -9 -8 -7 -7 -7 -7 -5 -5 -5 -5 -5 -4 -4 -4 -4 -4 -4 -3 -3 -3 -2 -2 -2 -1 -1 ----------- Run | Yrd Mat Min Mat Min Mat Fac Sto Rec Scr Fac Ext Cet Arc Hub Fac Was Fac Upp Upp War Pro Res Qua Res Tes Sec Acc Com Matter Collected 9951 | 260 78 66 642 40 299 140 352 86 266 869 784 229 155 56 54 204 80 32 95 807 184 278 676 271 507 1538 748 155 Remotely . | . . . . . . . . . . . . . . . . . . . . . . . . . . . . . Salvage Created 27342 | 10 837 249 2671 172 1283 727 2026 606 12 2047 1709 62 241 267 54 124 109 . . 621 335 474 1886 1370 852 4275 3219 1104 Parts 1260 | 1 52 25 172 9 48 14 75 19 3 84 73 3 22 9 3 9 5 . . 15 16 7 125 54 47 182 161 27 Haulers Intercepted 25 | . 2 . 6 . 3 2 6 . . 1 2 . . . . . . . . . . 1 1 1 . . . . Recyclers Shooed 6 | . 1 . 2 . . . 1 . . 1 1 . . . . . . . . . . . . . . . . . Parts Field Recycled . | . . . . . . . . . . . . . . . . . . . . . . . . . . . . . Retrieved Matter . | . . . . . . . . . . . . . . . . . . . . . . . . . . . . . Parts Self-Destructed 32 | . . . . . . . . . . . . . . . . . . . 18 . 14 . . . . . . . Prevented . | . . . . . . . . . . . . . . . . . . . . . . . . . . . . . Parts Restored . | . . . . . . . . . . . . . . . . . . . . . . . . . . . . . Kills | -11 -10 -10 -9 -9 -8 -7 -7 -7 -7 -5 -5 -5 -5 -5 -4 -4 -4 -4 -4 -4 -3 -3 -3 -2 -2 -2 -1 -1 ------- Run | Yrd Mat Min Mat Min Mat Fac Sto Rec Scr Fac Ext Cet Arc Hub Fac Was Fac Upp Upp War Pro Res Qua Res Tes Sec Acc Com Combat Hostiles Destroyed 386 | . 18 10 53 4 25 6 29 8 . 34 19 . . 1 1 . . . . 21 4 5 25 11 9 52 46 5 Melee 224 | . . . 4 4 10 3 22 8 . 23 10 . . 1 1 . . . . . 4 4 21 11 8 47 39 4 Guns 3 | . 3 . . . . . . . . . . . . . . . . . . . . . . . . . . . Cannons 42 | . 15 3 23 . . . . . . . 1 . . . . . . . . . . . . . . . . . AOE 77 | . . 7 26 . 4 . . . . 4 6 . . . . . . . . 21 . . 4 . . . 5 . Classes Destroyed 27 | 1 5 1 5 . 2 . 2 . 1 1 . . . . . 1 . . . 3 1 . . . 1 3 . . Worker 32 | . 2 1 6 . 4 3 5 . . 7 1 . . . . . . . . . . . 1 1 . 1 . . Builder 25 | . . 1 3 . 2 . 1 . . 1 3 . . 3 . . . . . . . 2 4 1 2 2 . . Tunneler 11 | 1 2 1 2 . 3 . . . . 1 . . . . . . . . . . . . . . . . 1 . Hauler 25 | . 2 . 6 . 3 2 6 . . 1 2 . . . . . . . . . . 1 1 1 . . . . Recycler 19 | . . . 4 1 . 3 . 2 . . 3 . . 1 . . 1 . . . . . . 3 . . 1 . Minesweeper 1 | . . . . . . . . . . . . . . . . . . . . . 1 . . . . . . . Mechanic 2 | . . . . . . . 2 . . . . . . . . . . . . . . . . . . . . . Operator 11 | . . . . . 1 . 1 . . . . . 7 . . . . . . . . . . . . 1 1 . Watcher 21 | . 2 . 4 . 2 . 1 . . 2 . . . . . . . . . . . . 3 2 1 2 2 . Swarmer 69 | . 3 6 14 2 7 . 3 1 . 4 5 . . . . . . . . 5 . . 4 3 . . 12 . Saboteur 3 | . . . . . . . . . . . . . . . . . . . . 2 . . . . . 1 . . Grunt 157 | . 15 4 23 2 13 4 11 3 . 14 9 . . 1 . . . . . 8 3 1 4 2 2 24 14 . Brawler 4 | . . . 1 . 1 . . . . . . . . . . . . . . . . . . 1 . . 1 . Duelist 3 | . . . 3 . . . . . . . . . . . . . . . . . . . . . . . . . Protector 3 | . . . 2 . . . . . . . . . . . . . . . . 1 . . . . . . . . Researcher 1 | . . . . . . . . . . . . . . . . . . . . . . . . . . 1 . . Sentry 47 | . . . 10 . 3 . 11 3 . 3 5 . . . . . . . . . 1 . 3 1 . 4 2 1 Demolisher 1 | . . . . . . . . . . . . . . . . . . . . . . 1 . . . . . . Specialist 1 | . . . . . . . . . . . . . . . . . . . . 1 . . . . . . . . Hunter 14 | . . . . . 1 2 1 . . 1 . . . . 1 . . . . 3 . 1 . 1 . . 2 1 Programmer 75 | . . . . . . . 3 1 . 11 . . . . . . . . . . . 1 14 3 6 19 15 2 Behemoth 1 | . . . . . . . . . . . . . . . . . . . . . . . . . . 1 . . S7 Guard 2 | . . . . . . . . . . . . . . . . . . . . . . . . . . 2 . . Striker 2 | . . . . . . . . . . . . . . . . . . . . 1 . 1 . . . . . . Alpha 7 1 | . . . . . . . . . . . . . . . . . . . . . . . . . . 1 . . Fortress 1 | . . . . . . . . . . . . . . . . . . . . . . . . . 1 . . . Scrapoid 1 | . . . . . . . . . . 1 . . . . . . . . . . . . . . . . . . Botcube 1 | . . . . . . . . . 1 . . . . . . . . . . . . . . . . . . . Thug 1 | . . . . . . . . . . . 1 . . . . . . . . . . . . . . . . . Martyr 2 | . . . . . . . . . . . . . . . . 2 . . . . . . . . . . . . Best Kill Streak 18 | 1 3 5 18 2 4 4 5 5 . 6 6 . 2 3 1 . 1 . . 11 2 2 7 6 2 7 7 2 Combat Bots Only 14 | . 3 3 14 2 4 3 3 4 . 4 5 . . 1 1 . . . . 11 1 1 5 4 2 5 7 2 Max Kills in Single Turn 4 | 1 2 3 4 1 2 2 1 1 1 4 2 1 1 1 1 1 1 . . 4 1 1 3 1 1 1 4 1 Gunslinging 1 | . 1 . . . . . . . . . . . . . . . . . . . . . . . . . . . Exploded 4 | . . 3 3 . 2 . . . . 2 2 . . . . . . . . 4 . . 3 . . . 4 . Melee 1 | . . . 1 1 1 1 1 1 . 1 1 . . 1 1 . . . . . 1 1 1 1 1 1 1 1 Uniques/NPCs Destroyed 2 | . . . . . . . . . . . . 1 . . . . . . . . . . . . . . . 1 A7 (-5/Cetus) MAIN.C Shell (-1/Command) Combat | -11 -10 -10 -9 -9 -8 -7 -7 -7 -7 -5 -5 -5 -5 -5 -4 -4 -4 -4 -4 -4 -3 -3 -3 -2 -2 -2 -1 -1 -------- Run | Yrd Mat Min Mat Min Mat Fac Sto Rec Scr Fac Ext Cet Arc Hub Fac Was Fac Upp Upp War Pro Res Qua Res Tes Sec Acc Com Hostile Shots Fired 3112 | . 98 15 143 21 96 18 309 114 14 332 62 14 . 11 6 . 2 . . 217 13 95 161 146 69 410 455 291 Missed 780 | . 22 7 36 4 25 2 103 31 3 79 14 5 . 3 2 . 1 . . 81 4 26 38 34 12 79 118 51 Hits 2332 | . 76 8 107 17 71 16 206 83 11 253 48 9 . 8 4 . 1 . . 136 9 69 123 112 57 331 337 240 Melee 21 | . . . 3 . 4 . . . . . . . . . . . . . . 6 . 1 . 3 . . 4 . Projectile 2311 | . 76 8 104 17 67 16 206 83 11 253 48 9 . 8 4 . 1 . . 130 9 68 123 109 57 331 333 240 AOE 17 | . . . . . . . . . . . . . . . . . . . . 9 . 6 . . . . . 2 Critical Strikes 132 | . 1 . 5 . 5 . 3 1 1 17 1 3 . . . . . . . 11 3 . 9 3 5 12 29 23 Actively Blocked 61 | . . . . . . . . . . . . . . . . . . . . . . . 1 . 5 8 24 23 Part Disruptions 28 | . . . 1 . . . . . . 2 . . . . . . . . . . . . 2 . 2 5 5 11 Damage Taken 40725 | . 794 122 1632 153 1060 222 1931 714 174 4701 966 342 . 182 52 18 85 . 17 3687 184 1133 1695 2706 782 4926 4005 8442 Core 4115 | . 169 47 257 17 172 20 163 91 34 472 71 . . . . . 62 . . 342 . 68 46 154 11 305 464 1150 Absorbed by Shields 8337 | . . . . . . . . . 8 744 118 . . . 29 . 22 . 17 606 15 538 1090 465 572 1532 1682 899 Ignored by Resistances 5053 | . . . . . . . . . . 57 164 16 . . . . . . . . . 247 90 . 72 1242 2408 757 Regen/Repaired (Parts) 11507 | . . . 38 . . . . . 357 51 . 17 . . . 341 . . 17 285 329 375 1371 890 492 4835 1850 259 Core Remaining (%) 54 | 100 . 13 . 31 68 . . . 56 . . . . 45 . . . . . . 64 . 91 . . 26 . . Volleys Fired 332 | 3 70 12 113 . 5 . . . 2 5 26 4 . 2 . 6 1 . . 53 . 4 6 3 . 15 2 . Largest 2 | 2 2 2 2 . 1 . . . 1 1 2 1 . 1 . 1 1 . . 2 . 1 1 1 . 1 1 . Hottest 136 | 90 136 136 136 . 30 . . . . 36 96 . . 36 . 36 16 . . 98 . 94 113 52 . 120 52 . Shots Fired 492 | 6 137 17 185 . 5 . . . 2 5 37 4 . 2 . 6 1 . . 56 . 4 5 3 . 15 2 . Gun 48 | 6 32 . . . . . . . . . . . . . . . . . . 10 . . . . . . . . Cannon 313 | . 105 12 149 . . . . . . . 25 . . . . . . . . . . 4 3 . . 15 . . Launcher 122 | . . 5 36 . 5 . . . . 3 12 . . 2 . 6 . . . 46 . . 2 3 . . 2 . Special 9 | . . . . . . . . . 2 2 . 4 . . . . 1 . . . . . . . . . . . Kinetic 45 | . . . . . . . . . . . 25 . . . . . . . . 6 . . . . . 14 . . Thermal 313 | 6 137 12 149 . . . . . . . . . . . . . 1 . . 4 . . 3 . . 1 . . Explosive 90 | . . 1 16 . 5 . . . . 3 4 . . 2 . 6 . . . 46 . . 2 3 . . 2 . Electromagnetic 36 | . . 4 20 . . . . . . . 8 . . . . . . . . . . 4 . . . . . . Robot Hit Streak 15 | 3 15 4 8 . 1 . . . 3 6 7 3 . . . 6 . . . 9 . 3 . . . . . . Robot Miss Streak 6 | 2 4 1 5 . 1 . . . . . 6 1 . . . . . . . 2 . 3 . . . . 4 . Penetration Max 1 | . . . . . . . . . . . 1 . . . . . . . . . . . . . . . . . Secondary Targets 1 | . 1 . . . . . . . . . . . . . . . . . . . . . . . . . . . Max Gunslinging Chain 1 | . 1 . . . . . . . . . . . . . . . . . . . . . . . . . . . Shots Hit Robots 1347 | 3 74 10 106 8 71 20 106 27 12 150 58 11 8 6 2 7 3 . . 25 12 31 82 55 31 207 137 85 Core Hits 682 | 1 30 12 91 3 17 6 38 13 1 51 42 2 6 2 1 6 1 . . 88 8 9 46 22 11 80 65 30 Critical Kills 12 | . . . . 2 1 1 3 . . 1 4 . . . . . . . . . . . . . . . . . Critical Parts Destroyed 38 | . . . . 1 10 2 10 . . 6 3 . . . . . . . . . . 1 . . . . 3 2 Critical Strikes 189 | . 1 . 1 3 12 3 22 3 . 20 23 1 . . . . . . . 1 3 3 20 8 2 37 20 6 Burn 1 | . 1 . . . . . . . . . . . . . . . . . . . . . . . . . . . Destroy 12 | . . . . . . . . . . . 12 . . . . . . . . . . . . . . . . . Smash 43 | . . . . 3 11 3 13 . . 7 . . . . . . . . . . . 1 . . . . 3 2 Sever 125 | . . . 1 . 1 . 9 3 . 13 11 1 . . . . . . . 1 3 2 13 8 2 37 17 3 Impale 8 | . . . . . . . . . . . . . . . . . . . . . . . 7 . . . . 1 Melee Attacks 1662 | . . . 15 18 103 31 143 36 12 201 58 9 11 14 5 5 10 . . 2 15 51 154 90 65 291 218 105 Kinetic 17 | . . . . . . . . . . . . . . . . . . . . . . . . . 1 16 . . Impact 267 | . . . 7 13 81 23 56 . . 56 . . . . . . . . . . . 9 . . . . 14 8 Slashing 1291 | . . . 8 5 22 8 87 36 12 145 58 9 11 14 5 5 10 . . 2 15 42 90 81 64 275 204 83 Piercing 87 | . . . . . . . . . . . . . . . . . . . . . . . 64 9 . . . 14 Sneak Attacks 150 | . . . . 1 20 8 22 3 10 10 9 8 8 5 . 3 1 . . . 1 5 6 8 2 14 4 2 Combat Hostiles 12 | . . . . . 2 . 3 . . . . . . . . . . . . . . . 1 . . 4 2 . Follow-up Attacks 434 | . . . 1 2 15 . 24 6 2 51 10 3 1 1 1 . 1 . . 1 5 18 47 25 15 99 68 38 Damage Inflicted 77558 | 37 1744 743 4607 371 3762 1164 4964 1084 751 6802 3572 534 863 467 87 895 140 . . 4655 549 1620 4526 3758 2039 12646 9241 5937 Guns 328 | 37 161 . . . . . . . . . . . . . . . . . . 130 . . . . . . . . Cannons 3590 | . 1273 143 1777 . . . . . . . 318 . . . . . . . . . . 79 . . . . . . Explosions 11337 | . 218 578 2354 . 315 . . . . 443 942 . . 7 . 659 . . . 4451 . . 611 . . . 759 . Melee 62117 | . . . 453 371 3443 1164 4959 1084 729 6347 2312 534 863 460 87 236 140 . . 74 549 1541 3909 3758 2039 12646 8482 5937 Ramming 186 | . 92 22 23 . 4 . 5 . 22 12 . . . . . . . . . . . . 6 . . . . . Kinetic 972 | . . . . . . . . . . . 318 . . . . . . . . 68 . . . . . 586 . . Thermal 4317 | 37 1434 402 2243 . . . . . . . 139 . . . . . . . . 62 . . . . . . . . Explosive 8883 | . 218 110 970 . 315 . . . . 443 340 . . 7 . 659 . . . 4451 . . 611 . . . 759 . Electromagnetic 1669 | . . 209 918 . . . . . . . 463 . . . . . . . . . . 79 . . . . . . Impact 9892 | . . . 193 337 2981 1054 2153 . . 2031 . . . . . . . . . . . 424 . . . . 336 383 Slashing 48782 | . . . 260 34 462 110 2806 1084 729 4316 2312 534 863 460 87 236 140 . . 74 549 1117 2085 3482 2039 12060 8146 4797 Piercing 2857 | . . . . . . . . . . . . . . . . . . . . . . . 1824 276 . . . 757 Highest Corruption 29 | . . . 1 1 7 . 8 9 11 13 14 14 14 . . . . . . 8 8 1 29 . 7 15 . . Average Corruption 7 | . . . 1 1 3 . 7 8 10 8 13 14 11 . . . . . . 3 8 1 9 . 4 13 . . Corruption Purged 20 | . . . . . 5 . . . . . . . 15 . . . . . . . . . . . . . . . Corruption Blocked 19 | . . . . . . . . . . . . . . . . . . . . . . . . 19 . . . . Effects 444 | . . . 3 4 35 . 40 47 . 47 64 26 7 . . . . . . 13 22 4 42 . 13 77 . . Message Errors 108 | . . . . . 9 . 10 12 . 14 12 4 3 . . . . . . 3 6 1 9 . 4 21 . . Matter Fused 111 | . . . 1 1 6 . 10 12 . 14 21 8 2 . . . . . . 1 6 1 7 . 4 17 . . Heat Flow Errors 66 | . . . 1 1 4 . 6 6 . 8 8 4 . . . . . . . 2 4 1 7 . 3 11 . . Energy Discharges 56 | . . . . . 4 . 6 4 . 4 8 5 1 . . . . . . 2 4 . 8 . 1 9 . . Parts Rejected 7 | . . . . . 1 . . . . . 3 . . . . . . . . . . . 1 . . 2 . . Parts Fused 7 | . . . . 1 . . 1 1 . 1 . . 1 . . . . . . . . . 1 . . 1 . . Data Loss (minor) 44 | . . . . 1 7 . 5 7 . 2 5 1 . . . . . . . 1 2 . 5 . 1 7 . . Data Loss (major) 26 | . . . . . 1 . 2 4 . 1 3 3 . . . . . . . 2 . 1 3 . . 6 . . Misfires 1 | . . . 1 . . . . . . . . . . . . . . . . . . . . . . . . . Alerts 11 | . . . . . 3 . . 1 . 2 2 . . . . . . . . 1 . . . . . 2 . . Misdirections 4 | . . . . . . . . . . 1 1 1 . . . . . . . . . . . . . 1 . . Weapon Failures 3 | . . . . . . . . . . . 1 . . . . . . . . 1 . . 1 . . . . . Overload Shots . | . . . . . . . . . . . . . . . . . . . . . . . . . . . . . Overflow Damage 7984 | . 63 68 96 94 1145 271 917 29 94 1053 157 31 114 178 . . . . . 22 60 276 246 383 295 814 1193 385 Projectiles 78 | . 14 11 11 . . 8 34 . . . . . . . . . . . . . . . . . . . . . Explosions 515 | . 49 57 48 . 59 . . . . 31 11 . . . . . . . . 22 . . 130 . . . 108 . Melee 7391 | . . . 37 94 1086 263 883 29 94 1022 146 31 114 178 . . . . . . 60 276 116 383 295 814 1085 385 Knockbacks 53 | . 1 . 5 3 9 6 13 . . 10 1 . . . . . . . . . . . . . . . 3 2 Impact 46 | . 1 . 3 3 9 4 11 . . 10 . . . . . . . . . . . . . . . . 3 2 Kinetic 1 | . . . . . . . . . . . 1 . . . . . . . . . . . . . . . . . Secondary 6 | . . . 2 . . 2 2 . . . . . . . . . . . . . . . . . . . . . Self-Inflicted Damage 553 | . . 40 313 . 37 . . . . . 59 . . . . 18 . . . 31 . . . 55 . . . . Shots 25 | . . 2 16 . 1 . . . . . 2 . . . . 1 . . . 1 . . . 2 . . . . Rammed 36 | . 21 4 5 . 1 . 1 . 1 2 . . . . . . . . . . . . 1 . . . . . Targets Rammed 38 | . 22 5 5 . 1 . 1 . 1 2 . . . . . . . . . . . . 1 . . . . . Kicked . | . . . . . . . . . . . . . . . . . . . . . . . . . . . . . Crushed 2 | . 1 1 . . . . . . . . . . . . . . . . . . . . . . . . . . Highest Temperature 402 | 90 348 111 301 211 251 . 189 255 10 256 258 241 . 12 . . . . . 291 244 173 221 28 352 402 4 . Average Temperature 94 | 48 125 35 72 112 93 . 77 94 10 106 98 91 . 6 . . . . . 52 97 59 83 12 155 113 4 . Received Heat Transfer 5155 | . 336 30 450 30 486 63 576 246 94 919 273 27 . 18 . . 16 . . 175 77 135 102 136 53 453 244 216 Thermoelectric Energy+ 41 | . . . . . . . . . . . . . . . . . . . . . . . . . . 41 . . Effects 17 | . 5 . 5 . . . . . . . 2 . . . . . . . . 1 . . . . . 4 . . Energy Bleed 4 | . 3 . 1 . . . . . . . . . . . . . . . . . . . . . . . . . Interference 13 | . 2 . 4 . . . . . . . 2 . . . . . . . . 1 . . . . . 4 . . Siege Activations 1 | . . . . . . . . . . . . . . . . 1 . . . . . . . . . . . . Total Turns 5 | . . . . . . . . . . . . . . . . 5 . . . . . . . . . . . . Longest Duration 5 | . . . . . . . . . . . . . . . . 5 . . . . . . . . . . . . Martial Activations . | . . . . . . . . . . . . . . . . . . . . . . . . . . . . . Shielding Activations . | . . . . . . . . . . . . . . . . . . . . . . . . . . . . . Robots Disrupted . | . . . . . . . . . . . . . . . . . . . . . . . . . . . . . Combat Hostiles . | . . . . . . . . . . . . . . . . . . . . . . . . . . . . . Robots Corrupted 53 | . . . . 1 19 6 13 . . 8 2 . . . . . . . . . . 1 . . . . 2 1 Combat Hostiles 34 | . . . . . 11 3 7 . . 7 2 . . . . . . . . . . 1 . . . . 2 1 Parts Fried 71 | . . . 1 1 24 11 17 . . 11 1 . . . . . . . . . . 2 . . . . 3 . Impact Corruptions 124 | . . . 1 3 42 14 28 . . 27 . . . . . . . . . . . 2 . . . . 5 2 Robots Melted . | . . . . . . . . . . . . . . . . . . . . . . . . . . . . . Combat Hostiles . | . . . . . . . . . . . . . . . . . . . . . . . . . . . . . Parts Melted 7 | . 4 . 2 . . . . . . . . . . . . . . . . . . . . . . . . 1 Heat Transferred 7746 | 99 2802 709 3975 . . . . . . . 50 . . . . . . . . 111 . . . . . . . . Parts Sabotaged . | . . . . . . . . . . . . . . . . . . . . . . . . . . . . . Parts Stolen . | . . . . . . . . . . . . . . . . . . . . . . . . . . . . . Parts Stripped 77 | . . . . . . . . . . . . . . . . . . . . . . . . . 18 59 . . Power Chain Reactions 14 | . . 2 9 . . . . . . . 3 . . . . . . . . . . . . . . . . . Alert | -11 -10 -10 -9 -9 -8 -7 -7 -7 -7 -5 -5 -5 -5 -5 -4 -4 -4 -4 -4 -4 -3 -3 -3 -2 -2 -2 -1 -1 ------- Run | Yrd Mat Min Mat Min Mat Fac Sto Rec Scr Fac Ext Cet Arc Hub Fac Was Fac Upp Upp War Pro Res Qua Res Tes Sec Acc Com Maximum Alert Level 4 | . . 1 4 2 1 . 2 . . 2 3 2 1 3 3 1 2 . . . . . 1 1 . 3 4 3 Low Security (%) 48 | 100 100 81 37 . 37 100 47 100 . 36 29 . 44 52 . 64 17 . . . . 100 59 80 100 18 . . Level 1 24 | . . 18 10 14 62 . 42 . . 58 34 41 55 20 . 35 49 . . . . . 40 19 . 19 . . Level 2 13 | . . . 17 85 . . 9 . . 5 22 58 . 6 89 . 32 . . . . . . . . 31 33 10 Level 3 10 | . . . 29 . . . . . . . 14 . . 20 10 . . . . . . . . . . 30 33 88 Level 4 2 | . . . 3 . . . . . . . . . . . . . . . . . . . . . . . 32 . Level 5 . | . . . . . . . . . . . . . . . . . . . . . . . . . . . . . High Security . | . . . . . . . . . . . . . . . . . . . . . . . . . . . . . Max Security . | . . . . . . . . . . . . . . . . . . . . . . . . . . . . . Sterilizations 1 | . . . 1 . . . . . . . . . . . . . . . . . . . . . . . . . Peak Influence 1261 | 5 197 230 1121 467 372 159 454 173 . 412 851 534 260 1017 832 287 469 . . . . 192 284 233 165 904 1261 815 Initial 789 | . . 57 66 432 146 159 45 173 . . 196 464 151 41 497 287 . . . . . . 60 157 111 16 471 789 Average 302 | . 109 107 486 423 241 51 208 55 . 223 370 415 201 318 493 152 278 . . . . 47 126 133 84 499 876 764 Influence Increases 17900 | 5 659 355 1729 150 848 218 1031 340 . 1356 1501 379 249 1206 485 60 753 . 360 510 85 559 867 495 335 1751 1455 159 Destroy 0b10 Robot/C 9280 | . 360 200 1020 80 500 120 580 160 . 780 720 160 80 360 100 . 220 . 160 420 80 200 500 220 180 1060 920 100 Destroy 0b10 Robot/NC 835 | 5 40 15 135 5 75 40 80 10 . 65 65 10 35 60 . . 10 . . 5 5 15 45 40 15 30 25 5 Destroy Leader 1794 | . 108 30 260 20 120 34 214 . . 178 66 . . 116 20 . 42 . 20 . . 52 78 46 32 184 144 30 Allied During Kill 2016 | . . . . . . . . . . 53 491 170 115 529 117 . 272 . 180 10 . 79 . . . . . . Successful Hack 379 | . 6 . 24 . 13 7 19 5 . 40 29 . . 4 8 . 7 . . . . 99 12 24 36 46 . . Select Force Hacks 230 | . 30 . . . . . . 150 . . . . . 50 . . . . . . . . . . . . . . Disable Machine 1125 | . 60 30 150 . 15 . 45 . . 75 15 15 15 15 180 . 120 . . . . 60 120 15 30 120 45 . Anti-Garrison Action 200 | . . . . . . . . . . . . . . . . . . . . . . . . . . 200 . . Destroy Structure 1246 | . 10 35 125 . 35 2 3 . . 90 100 24 4 72 60 60 82 . . . . 54 82 120 42 81 141 24 Partial Spotted 15 | . . . . . . . . . . . . . . . . . . . . . . . . . . 15 . . Lose Combat Pursuer 780 | . 45 45 15 45 90 15 90 15 . 75 15 . . . . . . . . 75 . . 30 30 . 15 180 . Influence Decreases 17538 | 5 512 332 789 884 872 469 686 786 . 954 1074 829 510 307 680 881 345 390 354 297 323 452 694 577 503 995 1007 1031 Entered New Map 5006 | . . 90 104 678 230 193 56 273 . . 206 365 228 77 520 535 1 152 4 25 238 . 47 123 87 14 315 445 Time Decay 10000 | 5 482 222 585 206 592 276 528 493 . 574 518 334 222 110 160 326 214 238 350 192 85 342 617 404 416 661 642 206 Lost Part 1030 | . 30 . 100 . 50 . 60 20 . 280 20 10 . . . . . . . 60 . 10 30 50 . 20 50 240 Lost Ally 1010 | . . 20 . . . . . . . 100 180 120 60 120 . 20 130 . . 20 . 100 . . . . . 140 Purge Threat 492 | . . . . . . . 42 . . . 150 . . . . . . . . . . . . . . 300 . . Squads Dispatched 112 | . 6 1 9 1 3 4 10 . . 19 3 . . 6 2 . 2 . . . . 8 5 4 4 10 13 2 Investigation 25 | . 3 . 1 1 2 2 . . . 6 2 . . 2 1 . . . . . . 3 . . . 2 . . Extermination 33 | . . . . . . 1 4 . . 5 . . . . . . . . . . . . 5 2 3 5 7 1 Reinforcement 34 | . 3 . 5 . 1 1 3 . . 2 1 . . 4 . . 2 . . . . 5 . 2 . 2 3 . Assault 10 | . . 1 3 . . . . . . . . . . . . . . . . . . . . . 1 1 3 1 Garrison 10 | . . . . . . . 3 . . 6 . . . . 1 . . . . . . . . . . . . . Intercept . | . . . . . . . . . . . . . . . . . . . . . . . . . . . . . Searches Triggered . | . . . . . . . . . . . . . . . . . . . . . . . . . . . . . Unchained Authorized 1 | . . . . . . . . . . . . . . . . . . . . . . . . . . . 1 . Construction Impeded 4 | . . . 4 . . . . . . . . . . . . . . . . . . . . . . . . . Haulers Reinforced 7 | . . . . . . 1 2 . . 1 . . . 1 . . . . . . . 1 . 1 . . . . Active Scanning Responses . | . . . . . . . . . . . . . . . . . . . . . . . . . . . . . Cargo Convoy Interrupts 1 | . . . . . . . . . . . . . . . . . . . . . . . . 1 . . . . Stealth | -11 -10 -10 -9 -9 -8 -7 -7 -7 -7 -5 -5 -5 -5 -5 -4 -4 -4 -4 -4 -4 -3 -3 -3 -2 -2 -2 -1 -1 --------- Run | Yrd Mat Min Mat Min Mat Fac Sto Rec Scr Fac Ext Cet Arc Hub Fac Was Fac Upp Upp War Pro Res Qua Res Tes Sec Acc Com Distress Signals 41 | . 1 . 4 . 4 1 6 . . . . 2 . 5 3 . 1 . . 2 . 5 . 3 2 1 1 . Communications Jammed 422 | . . . . . . . . . . 17 40 8 . 187 1 . 6 . . . . . . 22 . 98 22 21 Distress Signals 417 | . . . . . . . . . . 17 40 8 . 187 1 . 2 . . . . . . 22 . 98 21 21 Times Spotted 732 | . 34 15 68 6 34 9 46 9 4 48 39 15 1 16 4 5 13 . 6 106 4 25 27 38 11 63 75 11 Peak Tracking Total 16 | . 4 4 11 3 5 4 4 4 4 5 3 5 1 9 2 2 5 . 5 16 1 5 3 9 3 5 8 5 Tactical Retreats 44 | . 3 2 1 3 5 1 4 1 . 5 1 . . . . . . . . 3 . . 2 2 . 1 10 . Traps | -11 -10 -10 -9 -9 -8 -7 -7 -7 -7 -5 -5 -5 -5 -5 -4 -4 -4 -4 -4 -4 -3 -3 -3 -2 -2 -2 -1 -1 ------- Run | Yrd Mat Min Mat Min Mat Fac Sto Rec Scr Fac Ext Cet Arc Hub Fac Was Fac Upp Upp War Pro Res Qua Res Tes Sec Acc Com Traps Triggered 20 | . 1 . . . 2 . 5 . . . 3 . . . 1 . . . . . . . 2 5 . . 1 . Indirectly . | . . . . . . . . . . . . . . . . . . . . . . . . . . . . . Trap Hack Attempts . | . . . . . . . . . . . . . . . . . . . . . . . . . . . . . Triggered . | . . . . . . . . . . . . . . . . . . . . . . . . . . . . . Disarmed 3 | . . . . . . . 3 . . . . . . . . . . . . . . . . . . . . . Reprogrammed . | . . . . . . . . . . . . . . . . . . . . . . . . . . . . . Reused . | . . . . . . . . . . . . . . . . . . . . . . . . . . . . . Traps Extracted . | . . . . . . . . . . . . . . . . . . . . . . . . . . . . . Installed . | . . . . . . . . . . . . . . . . . . . . . . . . . . . . . Triggered . | . . . . . . . . . . . . . . . . . . . . . . . . . . . . . Machines | -11 -10 -10 -9 -9 -8 -7 -7 -7 -7 -5 -5 -5 -5 -5 -4 -4 -4 -4 -4 -4 -3 -3 -3 -2 -2 -2 -1 -1 ---------- Run | Yrd Mat Min Mat Min Mat Fac Sto Rec Scr Fac Ext Cet Arc Hub Fac Was Fac Upp Upp War Pro Res Qua Res Tes Sec Acc Com Machines Disabled 83 | . 5 2 11 . 1 . 3 . 1 5 1 1 1 1 12 . 8 . . 2 . 4 8 1 3 10 3 . Max in Single Turn 3 | . 1 1 1 . 1 . 1 . 1 1 1 1 . . . . 1 . . 1 . 1 3 1 1 1 1 . Garrison Access 3 | . . . . . . . . . . . . . . . . . . . . . . . 1 1 . 1 . . Network Hub 1 | . . . . . . . . . . . . . . 1 . . . . . . . . . . . . . . Energy Cycler 1 | . . . . . . . . . . . . . . . . . . . . . . . . . . . 1 . Machines Repaired . | . . . . . . . . . . . . . . . . . . . . . . . . . . . . . Machines Dismantled 14 | . . . . . . . . . . 2 . 1 . . . . 6 . . 2 . 3 . . . . . . Machines Sabotaged 1 | . . . . . . . . . . . . . . 1 . . . . . . . . . . . . . . Overloaded Fab Kills . | . . . . . . . . . . . . . . . . . . . . . . . . . . . . . Hacking | -11 -10 -10 -9 -9 -8 -7 -7 -7 -7 -5 -5 -5 -5 -5 -4 -4 -4 -4 -4 -4 -3 -3 -3 -2 -2 -2 -1 -1 --------- Run | Yrd Mat Min Mat Min Mat Fac Sto Rec Scr Fac Ext Cet Arc Hub Fac Was Fac Upp Upp War Pro Res Qua Res Tes Sec Acc Com Machines Accessed 106 | . 4 . 4 1 7 6 10 6 . 14 9 . . 3 2 . 1 1 . 1 . 7 5 7 2 9 6 1 Terminals 66 | . 3 . 1 . 6 5 8 1 . 7 8 . . 3 1 . 1 . . . . 3 2 2 2 8 4 1 Fabricators 7 | . . . . . . 1 . . . 4 . . . . . . . . . . . 1 . . . . 1 . Repair Stations 7 | . . . 2 . . . 2 . . 1 . . . . . . . . . . . 1 1 . . . . . Recycling Units 13 | . 1 . . . . . . 5 . 1 1 . . . 1 . . . . . . 1 . 3 . . . . Scanalyzers 6 | . . . 1 . 1 . . . . 1 . . . . . . . . . . . 1 1 1 . . . . Garrison Access 4 | . . . . . . . . . . . . . . . . . . . . . . . 1 1 . 1 1 . Total Hacks 259 | . 8 . 17 1 23 13 13 8 . 32 18 . . 7 6 . 4 1 . 1 . 21 26 16 8 26 9 1 Successful 122 | . 3 . 13 1 9 5 8 6 . 23 9 . . 3 2 . 2 1 . 1 . 7 16 2 2 9 . . Failed 136 | . 5 . 3 . 14 8 5 2 . 9 9 . . 4 4 . 2 . . . . 14 10 14 6 17 9 1 Catastrophic 35 | . 2 . . . 1 2 2 . . 2 2 . . . . . . . . . . 7 2 6 1 3 4 1 Database Lockouts 1 | . . . 1 . . . . . . . . . . . . . . . . . . . . . . . . . Manual 129 | . 8 . 2 . 15 4 7 9 . 16 5 1 . 7 2 . 4 . . . . 4 4 8 6 23 3 1 Terminals 153 | . 7 . 3 . 17 10 11 1 . 12 17 . . 7 4 . 4 . . . . 8 6 6 8 24 7 1 Fabricators 23 | . . . . . . 3 . . . 15 . . . . . . . . . . . 4 . . . . 1 . Repair Stations 26 | . . . 5 . . . 2 . . 1 . . . . . . . . . . . 5 13 . . . . . Recycling Units 19 | . 1 . . . . . . 7 . 2 1 . . . 2 . . . . . . 1 . 5 . . . . Scanalyzers 28 | . . . 9 . 6 . . . . 2 . . . . . . . . . . . 3 5 3 . . . . Garrison Access 7 | . . . . . . . . . . . . . . . . . . . . . . . 2 2 . 2 1 . Terminal Hacks 39 | . 2 . 2 1 3 4 8 . . 2 7 . . 1 . . 1 1 . 1 . . . . . 6 . . Part Schematic 1 | . 1 . . . . . . . . . . . . . . . . . . . . . . . . . . . Open Door 15 | . . . . 1 . . 4 . . 1 5 . . . . . . 1 . 1 . . . . . 2 . . Branch Access Points 4 | . . . . . 1 1 . . . 1 . . . . . . 1 . . . . . . . . . . . Unreport Threat 4 | . . . . . . . 1 . . . 1 . . . . . . . . . . . . . . 2 . . Disarm Traps 1 | . . . . . . . 1 . . . . . . . . . . . . . . . . . . . . . Recall Investigation 1 | . . . . . . 1 . . . . . . . . . . . . . . . . . . . . . . Hauler Manifests 4 | . 1 . 1 . 1 . 1 . . . . . . . . . . . . . . . . . . . . . Registered Components 3 | . . . 1 . 1 1 . . . . . . . . . . . . . . . . . . . . . . Zone Layout 6 | . . . . . . 1 1 . . . 1 . . 1 . . . . . . . . . . . 2 . . Fabricator Hacks 12 | . . . . . . 1 . . . 10 . . . . . . . . . . . 1 . . . . . . Load Schematic 9 | . . . . . . 1 . . . 7 . . . . . . . . . . . 1 . . . . . . Build 3 | . . . . . . . . . . 3 . . . . . . . . . . . . . . . . . . Repair Station Hacks 16 | . . . 3 . . . . . . . . . . . . . . . . . . 3 10 . . . . . Scan Component 9 | . . . 2 . . . . . . . . . . . . . . . . . . 2 5 . . . . . Repair 7 | . . . 1 . . . . . . . . . . . . . . . . . . 1 5 . . . . . Recycling Unit Hacks . | . . . . . . . . . . . . . . . . . . . . . . . . . . . . . Scanalyzer 22 | . . . 8 . 5 . . . . 2 . . . . . . . . . . . 1 5 1 . . . . Insert Component 6 | . . . 3 . 2 . . . . 1 . . . . . . . . . . . . . . . . . . Analyze 7 | . . . 3 . 3 . . . . 1 . . . . . . . . . . . . . . . . . . Retrieve Study 9 | . . . 2 . . . . . . . . . . . . . . . . . . 1 5 1 . . . . Garrison Access Hacks 2 | . . . . . . . . . . . . . . . . . . . . . . . 1 1 . . . . Seal Access 2 | . . . . . . . . . . . . . . . . . . . . . . . 1 1 . . . . Unauthorized Hacks 30 | . 1 . . . 1 . . 6 . 9 2 . . 2 1 . 1 . . . . 2 . . 2 3 . . Terminals 13 | . . . . . 1 . . 1 . 3 1 . . 2 . . 1 . . . . . . . 2 2 . . Assimilate 3 | . . . . . . . . 1 . 1 . . . . . . . . . . . . . . . 1 . . Botnet 9 | . . . . . 1 . . . . 2 1 . . 1 . . 1 . . . . . . . 2 1 . . Sabotage 1 | . . . . . . . . . . . . . . 1 . . . . . . . . . . . . . . Fabricators 5 | . . . . . . . . . . 4 . . . . . . . . . . . 1 . . . . . . Recompile 5 | . . . . . . . . . . 4 . . . . . . . . . . . 1 . . . . . . Repair Stations 1 | . . . . . . . . . . 1 . . . . . . . . . . . . . . . . . . Patch 1 | . . . . . . . . . . 1 . . . . . . . . . . . . . . . . . . Recycling Units 10 | . 1 . . . . . . 5 . 1 1 . . . 1 . . . . . . 1 . . . . . . Tunnel 6 | . 1 . . . . . . 5 . . . . . . . . . . . . . . . . . . . . Scrapoids 4 | . . . . . . . . . . 1 1 . . . 1 . . . . . . 1 . . . . . . Scanalyzers . | . . . . . . . . . . . . . . . . . . . . . . . . . . . . . Garrison Access 1 | . . . . . . . . . . . . . . . . . . . . . . . . . . 1 . . Jam 1 | . . . . . . . . . . . . . . . . . . . . . . . . . . 1 . . Data Cores Recovered 2 | . . . . . . . 1 . . . 1 . . . . . . . . . . . . . . . . . Used 1 | . . . . . . . . . . . 1 . . . . . . . . . . . . . . . . . Hacking Detections 75 | . 3 . 2 . 7 6 5 1 . 9 6 . . 2 2 . . . . . . 6 5 6 2 7 5 1 Full Trace Events 9 | . 1 . 1 . 2 2 . . . . 1 . . 1 . . . . . . . . . . . 1 . . Feedback Events 1 | . . . . . . . . . . . 1 . . . . . . . . . . . . . . . . . Corruption 1 | . . . . . . . . . . . 1 . . . . . . . . . . . . . . . . . Feedback Blocked . | . . . . . . . . . . . . . . . . . . . . . . . . . . . . . Robot Schematics Acquired 1 | . . . . . . . . . . . . . . . . . . . . . . . . . . 1 . . Robots Built . | . . . . . . . . . . . . . . . . . . . . . . . . . . . . . Authchips . | . . . . . . . . . . . . . . . . . . . . . . . . . . . . . Time . | . . . . . . . . . . . . . . . . . . . . . . . . . . . . . Total Robot Build Rating . | . . . . . . . . . . . . . . . . . . . . . . . . . . . . . Part Schematics Acquired 10 | . 1 . 3 . 2 . . . . 1 . . . . . . . . . . . . . . . 3 . . Parts Built 6 | . . . . . . . . . . 6 . . . . . . . . . . . . . . . . . . Authchips 3 | . . . . . . . . . . 3 . . . . . . . . . . . . . . . . . . Time 126 | . . . . . . . . . . 126 . . . . . . . . . . . . . . . . . . Total Part Build Rating 24 | . . . . . . . . . . 24 . . . . . . . . . . . . . . . . . . Part Studies Acquired 8 | . . . 1 . . . . . . . . . . . . . . . . . . 1 5 1 . . . . Parts Repaired 7 | . . . 1 . . . . . . . . . . . . . . . . . . 1 5 . . . . . Time 423 | . . . 36 . . . . . . . . . . . . . . . . . . 29 358 . . . . . Parts Recycled . | . . . . . . . . . . . . . . . . . . . . . . . . . . . . . Recycled Matter . | . . . . . . . . . . . . . . . . . . . . . . . . . . . . . Retrieved Matter . | . . . . . . . . . . . . . . . . . . . . . . . . . . . . . Retrieved Components . | . . . . . . . . . . . . . . . . . . . . . . . . . . . . . Parts Scanalyzed 6 | . . . 3 . 2 . . . . 1 . . . . . . . . . . . . . . . . . . Part Schematics Acquired 6 | . . . 3 . 2 . . . . 1 . . . . . . . . . . . . . . . . . . Parts Damaged . | . . . . . . . . . . . . . . . . . . . . . . . . . . . . . Bothacking | -11 -10 -10 -9 -9 -8 -7 -7 -7 -7 -5 -5 -5 -5 -5 -4 -4 -4 -4 -4 -4 -3 -3 -3 -2 -2 -2 -1 -1 ------------ Run | Yrd Mat Min Mat Min Mat Fac Sto Rec Scr Fac Ext Cet Arc Hub Fac Was Fac Upp Upp War Pro Res Qua Res Tes Sec Acc Com Used RIF Installer . | . . . . . . . . . . . . . . . . . . . . . . . . . . . . . Robots Hacked 2 | . . . . . . . . . . 2 . . . . . . . . . . . . . . . . . . Non-combat 2 | . . . . . . . . . . 2 . . . . . . . . . . . . . . . . . . Combat . | . . . . . . . . . . . . . . . . . . . . . . . . . . . . . Robot Hacks Applied 2 | . . . . . . . . . . 2 . . . . . . . . . . . . . . . . . . find_chute 1 | . . . . . . . . . . 1 . . . . . . . . . . . . . . . . . . find_recycling 1 | . . . . . . . . . . 1 . . . . . . . . . . . . . . . . . . Relay Couplers Released . | . . . . . . . . . . . . . . . . . . . . . . . . . . . . . Fabnet Peak Effective % . | . . . . . . . . . . . . . . . . . . . . . . . . . . . . . Robots Rewired 14 | . . . . . . . . . . . 14 . . . . . . . . . . . . . . . . . Allies Hacked . | . . . . . . . . . . . . . . . . . . . . . . . . . . . . . Hacks Repelled . | . . . . . . . . . . . . . . . . . . . . . . . . . . . . . Allies | -11 -10 -10 -9 -9 -8 -7 -7 -7 -7 -5 -5 -5 -5 -5 -4 -4 -4 -4 -4 -4 -3 -3 -3 -2 -2 -2 -1 -1 -------- Run | Yrd Mat Min Mat Min Mat Fac Sto Rec Scr Fac Ext Cet Arc Hub Fac Was Fac Upp Upp War Pro Res Qua Res Tes Sec Acc Com Total Allies 79 | . . 1 . . . . . . 2 6 27 5 . . 5 21 . . . . . 5 . . . . . 7 Largest Group 27 | . . 1 . . . . . . 1 5 17 17 14 11 8 27 25 18 18 18 . 5 . . . . . . Highest-Rated Group 1220 | . . 31 . . . . . . 62 238 731 975 779 676 518 1220 1120 897 897 885 . 320 . . . . . . Highest-Rated Ally 159 | . . 31 . . . . . . 62 50 159 153 96 96 96 96 96 96 96 96 . 64 . . . . . . Initial UFD Resources 39 | . . . . . . . . . . 39 36 33 33 33 35 32 32 32 32 32 35 35 32 35 35 35 37 37 Total Orders 29 | . . . . . . . . . . 4 . . . 4 6 . 3 . . 3 2 . . . 7 . . . EXPLORE 19 | . . . . . . . . . . 2 . . . 3 4 . 2 . . 2 2 . . . 4 . . . RETURN 10 | . . . . . . . . . . 2 . . . 1 2 . 1 . . 1 . . . . 3 . . . Ally Attacks 755 | . . 7 . . . . . . 1 76 139 85 26 95 33 89 96 . 39 26 . 39 . . . . . 4 Total Damage 18631 | . . 104 . . . . . . 16 1444 3329 1732 692 3136 1053 2220 2549 . 846 544 . 887 . . . . . 79 Kills 106 | . . . . . . . . . 1 6 21 11 4 25 5 6 13 . 8 1 . 5 . . . . . . Allies Corrupted 9 | . . . . . . . . . . 1 . . . . . . . . . 8 . . . . . . . . Allies Melted 1 | . . . . . . . . . . . . . . 1 . . . . . . . . . . . . . . Intel | -11 -10 -10 -9 -9 -8 -7 -7 -7 -7 -5 -5 -5 -5 -5 -4 -4 -4 -4 -4 -4 -3 -3 -3 -2 -2 -2 -1 -1 ------- Run | Yrd Mat Min Mat Min Mat Fac Sto Rec Scr Fac Ext Cet Arc Hub Fac Was Fac Upp Upp War Pro Res Qua Res Tes Sec Acc Com Active Infowar (turns) 19444 | . . . . . . . 2 . . 1938 1425 759 324 235 332 731 464 517 793 807 684 876 2352 896 1004 2724 2267 314 Optics 2251 | . . . . . . . . . . . . . . . 4 . . . . . . 211 . . 857 1179 . . Sensors 14721 | . . . . . . . . . . 1674 1425 759 323 235 332 731 400 517 793 807 . . 1680 815 700 1588 1940 2 Terrain 5942 | . . . . . . . . . . 61 . . . . . . . . . . 24 665 1492 688 600 685 1727 . Seismic 2 | . . . . . . . 2 . . . . . . . . . . . . . . . . . . . . . Jamming 16482 | . . . . . . . . . . 927 1424 759 308 235 332 731 464 517 793 152 684 271 2352 676 922 2564 2057 314 ECM 209 | . . . . . . . . . . . . . . . . . . . . . . . . . . . . 209 Robot Analysis Total . | . . . . . . . . . . . . . . . . . . . . . . . . . . . . . Derelict Logs Recovered 3 | . . 1 . 1 . . . . . . . . . . . . . 1 . . . . . . . . . . Drone Launches 19 | . . . . . . . . . . 2 . . . 3 4 . 2 . . 2 2 . . . 4 . . . Drone Recoveries 14 | . . . . . . . . . . 1 . . . 3 4 . . . . 2 . . . . 4 . . . Exploration | -11 -10 -10 -9 -9 -8 -7 -7 -7 -7 -5 -5 -5 -5 -5 -4 -4 -4 -4 -4 -4 -3 -3 -3 -2 -2 -2 -1 -1 ------------- Run | Yrd Mat Min Mat Min Mat Fac Sto Rec Scr Fac Ext Cet Arc Hub Fac Was Fac Upp Upp War Pro Res Qua Res Tes Sec Acc Com Turns Passed 35105 | 149 1357 488 2008 437 1870 729 1536 1481 3371 2372 1425 759 474 235 332 731 464 517 793 1278 864 1472 2390 964 1004 2761 2317 527 Spaces Moved 16696 | 87 628 278 932 242 852 429 679 693 1960 928 713 350 219 114 179 380 203 275 462 612 336 764 932 443 433 1222 1122 229 Core 12 | 12 . . . . . . . . . . . . . . . . . . . . . . . . . . . . Treads 14942 | 75 628 278 932 242 852 71 115 693 1960 653 244 350 219 114 179 380 203 275 462 612 336 764 932 443 433 1219 1069 209 Legs . | . . . . . . . . . . . . . . . . . . . . . . . . . . . . . Wheels 1666 | . . . . . . 358 564 . . 275 469 . . . . . . . . . . . . . . . . . Hover . | . . . . . . . . . . . . . . . . . . . . . . . . . . . . . Flight . | . . . . . . . . . . . . . . . . . . . . . . . . . . . . . Fastest Speed 50 | 50 160 160 160 160 160 130 130 200 156 114 131 164 165 165 165 158 163 163 163 163 163 163 155 155 155 141 141 141 Average Speed 159 | 147 160 160 161 160 160 140 150 200 160 180 143 171 180 165 165 166 163 163 163 163 163 163 156 155 156 145 145 143 Slowest Speed 247 | 160 160 160 240 160 200 200 240 210 210 247 244 244 246 165 165 245 163 163 163 163 163 163 212 235 235 223 227 232 Overloaded Moves . | . . . . . . . . . . . . . . . . . . . . . . . . . . . . . Propulsion Burnouts . | . . . . . . . . . . . . . . . . . . . . . . . . . . . . . Robots Hopped . | . . . . . . . . . . . . . . . . . . . . . . . . . . . . . Potential Cave-ins 22 | . . . . . . . . . . . . . . . . . . . . 3 . . . 10 . 7 2 . Cave-ins Triggered 3 | . . . . . . . . . . . . . . . . . . . . . . . . 2 . . 1 . Teleports 2 | . . . . . . . . . . . . . . . . . . . . . . . . 2 . . . . Spacefolds 4 | . . . . . . . . . . . . . . . . . . . . . . . . . . 1 . 3 Microwarps 2 | . . . . . . . . . . . . . . . . . . . . . . . . . . . 1 1 Exploration Rate (%) 53 | 6 96 57 83 41 55 14 92 89 88 27 86 66 81 23 12 91 8 49 63 91 57 22 78 14 61 53 40 14 Regions Visited 28 Branch Regions 17 Pre-discovered Areas 6 | . 1 . . . . . . 5 . . . . . . . . . . . . . . . . . . . . Known Exits Taken 17 | . . . 1 . 1 1 . . . 1 1 1 1 1 . . 1 1 1 1 1 1 1 . . 1 1 . Unknown Exits Taken 9 | 1 1 1 . 1 . . 1 1 1 . . . . . . . . . . . . . . 1 1 . . . Scrap Searched 10 | . . . . 1 . . . . 4 . . . . . . . . 1 1 . 3 . . . . . . . Spaces Dug 156 | . . . . . 4 2 3 . 1 11 1 . . 7 2 . 7 . . . . 12 16 19 14 23 26 8 Terrain Destroyed 797 | . 6 37 129 . 53 2 3 . 1 20 70 . . 29 2 25 7 . . 150 . 12 39 103 14 32 55 8 Melee 153 | . . . . . 4 2 3 . 1 11 1 . . 7 2 . 7 . . . . 12 16 19 14 20 26 8 Projectile 22 | . . . 2 . . . . . . . 6 . . . . . . . . . . . 2 . . 12 . . AOE 622 | . 6 37 127 . 49 . . . . 9 63 . . 22 . 25 . . . 150 . . 21 84 . . 29 . Terrain Rammed . | . . . . . . . . . . . . . . . . . . . . . . . . . . . . . Walls Destroyed . | . . . . . . . . . . . . . . . . . . . . . . . . . . . . . Machines Disabled . | . . . . . . . . . . . . . . . . . . . . . . . . . . . . . Actions | -11 -10 -10 -9 -9 -8 -7 -7 -7 -7 -5 -5 -5 -5 -5 -4 -4 -4 -4 -4 -4 -3 -3 -3 -2 -2 -2 -1 -1 --------- Run | Yrd Mat Min Mat Min Mat Fac Sto Rec Scr Fac Ext Cet Arc Hub Fac Was Fac Upp Upp War Pro Res Qua Res Tes Sec Acc Com Total 22544 | 99 831 299 1229 270 1220 513 1011 742 2184 1376 1001 499 285 138 209 465 323 343 501 823 635 938 1656 579 667 1835 1530 343 Wait 2729 | . 88 1 81 4 226 16 154 2 92 142 46 89 36 7 7 59 40 64 35 106 272 48 511 20 131 226 211 15 Move 16596 | 86 627 277 931 241 851 428 678 692 1959 927 712 349 218 113 179 379 202 274 461 611 335 763 931 441 432 1219 1068 212 Hop . | . . . . . . . . . . . . . . . . . . . . . . . . . . . . . Pick Up 344 | 4 8 . 21 5 22 14 18 4 51 36 14 8 2 . 2 3 7 . 1 4 6 14 24 8 12 29 20 7 Fast Attach 144 | 6 4 . 9 . 4 6 8 2 1 15 6 3 6 . 4 2 4 2 . 4 . 5 16 5 5 20 4 3 Attach 169 | . 2 . 10 1 6 3 8 2 4 29 3 5 2 . 3 1 2 . . 8 2 7 6 7 6 25 10 17 Detach 34 | . . . . . . 1 . . . 6 . 1 . . . 1 . . . 2 . 1 2 1 1 16 1 1 Swap 480 | . 4 4 26 1 13 5 13 8 10 47 22 12 3 3 5 4 8 1 3 10 11 21 42 27 18 82 62 15 Drop 385 | . 6 . 20 4 16 14 27 6 53 18 15 15 9 . 6 7 13 2 1 7 2 19 30 9 17 40 20 9 Fire 332 | 3 70 12 113 . 5 . . . 2 5 26 4 . 2 . 6 1 . . 53 . 4 6 3 . 15 2 . Melee 1072 | . . . 13 14 76 26 104 26 10 137 43 5 9 12 3 3 9 . . 1 7 29 87 57 45 161 131 64 Ram . | . . . . . . . . . . . . . . . . . . . . . . . . . . . . . Kick . | . . . . . . . . . . . . . . . . . . . . . . . . . . . . . Crush 38 | . 22 5 5 . 1 . 1 . 1 2 . . . . . . . . . . . . 1 . . . . . Escape Stasis 26 | . . . . . . . . . . . 24 . . . . . . . . . . . . 1 . . 1 . Rewire 94 | . . . . . . . . . 1 . 90 . . 1 . . . . . . . . . . . 2 . . Trap . | . . . . . . . . . . . . . . . . . . . . . . . . . . . . . Miscellaneous 101 | . . . . . . . . . . 12 . 8 . . . . 37 . . 17 . 27 . . . . . . Route ------- -11/Scrapyard -10/Materials (discovered 5 exits: *Mat x3 / [*Min x2]) -10/Mines (discovered 2 exits: *Mat x2) -9/Materials (discovered 4 exits: *Mat x2 / *Min x2) -9/Mines -8/Materials (discovered 2 exits: *Fac x2) -7/Factory (discovered 4 exits: *Sto x2 / Low x2) -7/Storage (discovered 2 exits: [*Fac] / *Rec) -7/Recycling -7/Scraptown -5/Factory (discovered 5 exits: *Fac / *Upp x2 / *Ext x2) -5/Extension (discovered 2 exits: *Fac / *Cet) -5/Cetus (discovered 2 exits: *Fac / *Arc) -5/Archives (discovered 3 exits: *Fac / *Hub x2) -5/Hub_04(d) -4/Factory -4/Waste -4/Factory (discovered 2 exits: *Upp x2) -4/Upper Caves -4/Upper Caves -4/Warlord -3/Proximity Caves -3/Research -3/Quarantine -2/Research (discovered 3 exits: *Acc x2 / *Tes) -2/Testing (discovered 2 exits: *Sec / [*Frg]) -2/Section 7 -1/Access -1/Command History --------- Turn | Location | Event 2 | -11/Scrapyard | Met Revision 17 3 | -11/Scrapyard | Discovered new exit (range 16) 150 | -11/Scrapyard | Entered Materials 304 | -10/Materials | Build established: Mutant 587 | -10/Materials | Discovered new exit (range 15) 736 | -10/Materials | Discovered new exit (range 15) 855 | -10/Materials | Discovered new exit (range 12) 924 | -10/Materials | Core integrity fell below 50% 1001 | -10/Materials | Discovered new exit (range 6) 1320 | -10/Materials | Discovered new exit (range 16) 1507 | -10/Materials | Entered Mines 1508 | -10/Mines | Met a Derelict testing a Signal Generator 1519 | -10/Mines | Learned Materials stockpile data 1587 | -10/Mines | Found a hidden stash of uninstalled traps 1587 | -10/Mines | Discovered new exit (range 13) 1677 | -10/Mines | Discovered new exit (range 3) 1855 | -10/Mines | Core integrity fell below 20% 1995 | -10/Mines | Entered Materials 1995 | -9/Materials | Evolved 2 slots: Propulsion x1, Utility x1 2377 | -9/Materials | Discovered new exit (range 16) 2564 | -9/Materials | Discovered new exit (range 14) 2999 | -9/Materials | Destroyed 7 combat bots 3003 | -9/Materials | Lost 3 parts (2n1u) 3162 | -9/Materials | Discovered new exit (range 16) 3195 | -9/Materials | First assault squad dispatched 3259 | -9/Materials | Identified exit to Mines 3319 | -9/Materials | Build established: Scavenger-Mutant 3459 | -9/Materials | Core integrity fell below 50% 3486 | -9/Materials | Destroyed 14 combat bots 3489 | -9/Materials | Lost 3 parts (2u1w) 3717 | -9/Materials | Sterilization system engaged 3717 | -9/Materials | Non-combat units ordered to evacuate 3724 | -9/Materials | Central database locked down 3756 | -9/Materials | Discovered new exit (range 5) 3815 | -9/Materials | Repaired Corrupted Hammer 3817 | -9/Materials | Combat units ordered to evacuate 4003 | -9/Materials | Entered Mines 4023 | -9/Mines | Learned Materials emergency access door positions 4113 | -9/Mines | Build established: Scavenger-Gladiator 4165 | -9/Mines | Discovered new exit (range 10) 4213 | -9/Mines | Met a Derelict shopkeep closing up shop 4253 | -9/Mines | Found Powered Armor 4440 | -9/Mines | Entered Materials 4440 | -8/Materials | Evolved 2 slots: Propulsion x1, Weapon x1 4859 | -8/Materials | Discovered new exit (range 3) 4869 | -8/Materials | Identified exit to Factory 5736 | -8/Materials | Discovered exit to Factory (range 15) 5915 | -8/Materials | Lost 3 parts (1p2n) 6310 | -8/Materials | Entered Factory 6310 | -7/Factory | Evolved 2 slots: Propulsion x1, Utility x1 6596 | -7/Factory | Identified exit to Storage 6596 | -7/Factory | Identified exit to Lower Caves 7039 | -7/Factory | Entered Storage 7476 | -7/Storage | Used back door to open Recycling access 7476 | -7/Storage | Discovered new exit (range 5) 7839 | -7/Storage | Discovered new exit (range 14) 8239 | -7/Storage | Garrison activated, responded to threat 8575 | -7/Storage | Entered Recycling 10008 | -7/Recycling | Scanned before Scraplab entrance 10036 | -7/Recycling | Entered Scraplab 10052 | -7/Recycling | Discovered new exit (range 3) 10056 | -7/Recycling | Entered Scraptown 10057 | -7/Scraptown | System corruption reached 10% 10059 | -7/Scraptown | System corruption cleaned by C-Scrubber 10645 | -7/Scraptown | Visited Fellowship of the Rings 10694 | -7/Scraptown | Visited Cyclists 10832 | -7/Scraptown | Visited CR-KLE's Repair Center 10848 | -7/Scraptown | CR-KLE repaired 8 parts 11004 | -7/Scraptown | Visited Shadow of the Wyrm 11035 | -7/Scraptown | Visited Assassins FH 11083 | -7/Scraptown | Visited UFD Registry 11083 | -7/Scraptown | Registered with UFD as "Electrotube" 11115 | -7/Scraptown | Visited Junk Cannon Lab 11177 | -7/Scraptown | Visited Curators Association 11217 | -7/Scraptown | Visited Supply Room 11255 | -7/Scraptown | Visited Scrap Suit Storage 11278 | -7/Scraptown | Visited Observation Area 11345 | -7/Scraptown | Visited DA-N13 Charitable Foundation 11351 | -7/Scraptown | Found DCF Scrap (31 items) 11403 | -7/Scraptown | Visited Junk Repository 11437 | -7/Scraptown | Visited A0-MCA Data Center 11458 | -7/Scraptown | Given a B+ rating by A0-MCA 11621 | -7/Scraptown | Found A0-MCA's Component Scanner 11660 | -7/Scraptown | Build established: Gladiator 11692 | -7/Scraptown | Visited Botcube Research 11921 | -7/Scraptown | Found Scrap Suit 12116 | -7/Scraptown | Found Botcube 12324 | -7/Scraptown | Botcube activated 12338 | -7/Scraptown | Botcube completed mutation into wheeled form, armed with 1 gun 12353 | -7/Scraptown | Attached CPS modules to Mutated Botcube 12383 | -7/Scraptown | Murdered Mutated Botcube 12383 | -7/Scraptown | Destroyed Mutated Botcube 12411 | -7/Scraptown | Found Botcube 12904 | -7/Scraptown | Botcube activated 12922 | -7/Scraptown | Botcube completed mutation into wheeled form, armed with 2 guns 12922 | -7/Scraptown | Attached CPS modules to Mutated Botcube 13229 | -7/Scraptown | Met Optimus 13229 | -7/Scraptown | Accepted into 0bPrime 13375 | -7/Scraptown | Civil war broke out across Scraptown 13403 | -7/Scraptown | Found Prototype Special Weapon 13416 | -7/Scraptown | Discovered new exit (range 8) 13427 | -7/Scraptown | Entered Factory 13427 | -5/Factory | Evolved 4 slots: Power x1, Utility x3 13429 | -5/Factory | Identified Exp. Plasma Cutter 13450 | -5/Factory | Lost 6 allies 13578 | -5/Factory | Scrapoids reinforcements arrived? 13701 | -5/Factory | Fabricated Powered Armor (x2) 14077 | -5/Factory | Garrison activated, responded to threat 14115 | -5/Factory | Lost 3 parts (1p1n1u) 14155 | -5/Factory | Discovered new exit (range 15) 14247 | -5/Factory | Identified exit to Factory 14416 | -5/Factory | Build established: Scavenger-Gladiator 14653 | -5/Factory | Fabricated Powered Armor (x2) 14828 | -5/Factory | Discovered new exit (range 14) 14903 | -5/Factory | Identified exit to Upper Caves 15125 | -5/Factory | System corruption reached 10% 15198 | -5/Factory | Lost 7 parts (2p3n2u) 15261 | -5/Factory | Garrison activated, responded to threat 15393 | -5/Factory | Lost 3 parts (1p1n1u) 15485 | -5/Factory | Discovered exit to Upper Caves (range 5) 15495 | -5/Factory | Lost 6 parts (1p3n1u1w) 15527 | -5/Factory | Identified exit to Extension 15657 | -5/Factory | Fabricated Powered Armor? 15799 | -5/Factory | Entered Extension 15886 | -5/Extension | Rescued A7 16278 | -5/Extension | Rescued a captive Derelict 16280 | -5/Extension | Rescued a captive Derelict 16583 | -5/Extension | Spotted B-75 Beast 16601 | -5/Extension | Allies destroyed B-75 Beast 16614 | -5/Extension | Spotted B-75 Beast 16640 | -5/Extension | Allies destroyed B-75 Beast 16659 | -5/Extension | Lost 5 allies 16736 | -5/Extension | Rescued a captive Derelict 16737 | -5/Extension | Rescued a captive Derelict 16871 | -5/Extension | Core integrity fell below 50% 16977 | -5/Extension | Scrapoids reinforcements arrived? 17025 | -5/Extension | Lost 4 allies 17074 | -5/Extension | Rescued a captive Derelict 17074 | -5/Extension | Rescued a captive Derelict 17112 | -5/Extension | Rescued a captive Derelict 17135 | -5/Extension | Build established: Commander-Gladiator 17152 | -5/Extension | Discovered exit to Factory (range 10) 17153 | -5/Extension | Discovered new exit (range 6) 17179 | -5/Extension | Identified exit to Cetus 17224 | -5/Extension | Entered Cetus 17224 | -5/Cetus | Accompanied by 17 allies (A7) 17229 | -5/Cetus | Acquired a Cetus Manufacturing Module code from A7 17244 | -5/Cetus | Spotted Cetus Guard 17245 | -5/Cetus | Spotted Cetus Guard 17248 | -5/Cetus | Spotted Cetus Guard 17248 | -5/Cetus | Allies destroyed Cetus Guard 17248 | -5/Cetus | Spotted Cetus Guard 17252 | -5/Cetus | Attached CPS modules to Cetus Guard 17255 | -5/Cetus | Allies destroyed Cetus Guard 17257 | -5/Cetus | Attached CPS modules to Cetus Guard 17260 | -5/Cetus | Allies destroyed Cetus Guard 17260 | -5/Cetus | Attached CPS modules to Cetus Guard 17261 | -5/Cetus | Allies destroyed Cetus Guard 17288 | -5/Cetus | Lost 4 allies 17664 | -5/Cetus | Started Cetus Manufacturing Module 17689 | -5/Cetus | Manufactured an Enhanced Grunt 17714 | -5/Cetus | Manufactured an Enhanced Grunt 17717 | -5/Cetus | Discovered new exit (range 16) 17739 | -5/Cetus | Manufactured an Enhanced Grunt 17764 | -5/Cetus | Manufactured an Enhanced Grunt 17781 | -5/Cetus | Spotted Cetus Guard 17782 | -5/Cetus | Spotted Cetus Guard 17782 | -5/Cetus | Spotted Cetus Guard 17784 | -5/Cetus | Spotted Cetus Guard 17788 | -5/Cetus | Allies destroyed Cetus Guard 17789 | -5/Cetus | Manufactured an Enhanced Grunt 17793 | -5/Cetus | Attached CPS modules to Cetus Guard 17797 | -5/Cetus | Allies destroyed Cetus Guard 17799 | -5/Cetus | Allies destroyed Cetus Guard 17801 | -5/Cetus | Allies destroyed Cetus Guard 17813 | -5/Cetus | Discovered exit to Factory (range 15) 17821 | -5/Cetus | Met Revision 17 17829 | -5/Cetus | Lost 3 allies 17915 | -5/Cetus | Identified exit to Archives 17942 | -5/Cetus | Murdered A7 17943 | -5/Cetus | Extracted ID and sensor layout for unrecognized location from A7's data core 17947 | -5/Cetus | Found Prototype Protection 17947 | -5/Cetus | Identified Med. Regenerative Plating 17974 | -5/Cetus | Security sweep announced 17983 | -5/Cetus | Entered Archives 17983 | -5/Archives | Accompanied by 14 allies 18049 | -5/Archives | Discovered exit to Factory (range 16) 18054 | -5/Archives | Lost 3 allies 18104 | -5/Archives | Discovered new exit (range 16) 18349 | -5/Archives | Discovered new exit (range 16) 18436 | -5/Archives | Identified exit to Hub_04(d) 18457 | -5/Archives | Entered Hub_04(d) 18457 | -5/Hub_04(d) | Accompanied by 11 allies 18509 | -5/Hub_04(d) | Discovered exit to Factory (range 16) 18590 | -5/Hub_04(d) | Watched by a mysterious "MATRIX" hacker 18594 | -5/Hub_04(d) | Build established: Commander-Mutant 18670 | -5/Hub_04(d) | Network Hub disabled 18692 | -5/Hub_04(d) | Entered Factory 18692 | -4/Factory | Accompanied by 4 allies 18692 | -4/Factory | Evolved 2 slots: Weapon x2 18694 | -4/Factory | Lost 5 allies 18949 | -4/Factory | Build established: Scavenger-Mutant 18986 | -4/Factory | Scrapoids reinforcements arrived? 18989 | -4/Factory | Garrison activated, responded to threat 19024 | -4/Factory | Manually triggered Chute Trap 19024 | -4/Factory | Sucked down chute 19024 | -4/Factory | Entered Waste 19024 | -4/Waste | Met up with 1 ally sucked down the chute earlier 19025 | -4/Waste | Met a frightened Derelict 19072 | -4/Waste | Spotted C-40 Crusher 19082 | -4/Waste | Spotted C-40 Crusher 19086 | -4/Waste | Allies destroyed C-40 Crusher 19089 | -4/Waste | Spotted C-40 Crusher 19090 | -4/Waste | Allies destroyed C-40 Crusher 19096 | -4/Waste | Spotted C-40 Crusher 19101 | -4/Waste | Allies destroyed C-40 Crusher 19103 | -4/Waste | Allies destroyed C-40 Crusher 19111 | -4/Waste | Spotted C-40 Crusher 19113 | -4/Waste | Allies destroyed C-40 Crusher 19124 | -4/Waste | Spotted C-40 Crusher 19126 | -4/Waste | Allies destroyed C-40 Crusher 19144 | -4/Waste | 7 allies followed down the chute 19332 | -4/Waste | Warlord forces began an assault 19403 | -4/Waste | Build established: Commander-Mutant 19612 | -4/Waste | Discovered new exit (range 16) 19718 | -4/Waste | Identified exit to Factory 19755 | -4/Waste | Entered Factory 19755 | -4/Factory | Accompanied by 25 allies 19785 | -4/Factory | Identified exit to Upper Caves 20043 | -4/Factory | Lost 4 allies 20219 | -4/Factory | Entered Upper Caves 20219 | -4/Upper Caves | Accompanied by 18 allies 20351 | -4/Upper Caves | Identified exit to Upper Caves 20736 | -4/Upper Caves | Entered another Upper Caves area 20736 | -4/Upper Caves | Accompanied by 18 allies 21256 | -4/Upper Caves | Discovered new exit (range 13) 21494 | -4/Upper Caves | Identified exit to Warlord 21529 | -4/Upper Caves | Entered Warlord 21529 | -4/Warlord | Accompanied by 18 allies 21564 | -4/Warlord | Lost 5 allies 21577 | -4/Warlord | Discovered new exit (range 8) 21587 | -4/Warlord | Identified exit to Proximity Caves 21616 | -4/Warlord | Lost 12 allies 21650 | -4/Warlord | System corruption cleaned by Quarantine Array 21873 | -4/Warlord | Build established: Scavenger-Mutant 21906 | -4/Warlord | Found Ghost Barrier 21914 | -4/Warlord | Found Vortex Chain Reactor 21976 | -4/Warlord | Visited the Vortex Lab 21983 | -4/Warlord | Warlord's base attacked by MAIN.C 22183 | -4/Warlord | Build established: Mutant 22204 | -4/Warlord | Warlord forces counterattacked 22267 | -4/Warlord | Lost 4 allies 22292 | -4/Warlord | Destroyed 11 combat bots 22352 | -4/Warlord | Spotted Executioner 22361 | -4/Warlord | Spotted Striker 22371 | -4/Warlord | Destroyed Striker 22396 | -4/Warlord | Spotted Striker 22410 | -4/Warlord | Spotted Executioner 22469 | -4/Warlord | Lost 31 allies 22579 | -4/Warlord | Build established: Scavenger-Mutant 22628 | -4/Warlord | Spotted Striker 22658 | -4/Warlord | Warlord base infiltrated, sounded retreat 22729 | -4/Warlord | Spotted Executioner 22748 | -4/Warlord | Spotted Striker 22758 | -4/Warlord | Spotted Striker 22764 | -4/Warlord | Lost 4 allies 22783 | -4/Warlord | Spotted Striker 22785 | -4/Warlord | Spotted Executioner 22788 | -4/Warlord | Spotted Striker 22807 | -4/Warlord | Entered Proximity Caves 22827 | -3/Proximity Caves | Lost 3 parts (1n1u1w) 23560 | -3/Proximity Caves | Attracted the attention of an 0b10 checkpoint 23631 | -3/Proximity Caves | Discovered new exit (range 10) 23668 | -3/Proximity Caves | Identified exit to Research 23671 | -3/Proximity Caves | Entered Research 23671 | -3/Research | Evolved 2 slots: Utility x2 23822 | -3/Research | Found Exp. Thermal Defense Suite 23871 | -3/Research | Revision forces began assault on 0b10 23879 | -3/Research | Build established: Scavenger-Gladiator 23942 | -3/Research | Met up with Revision 17++ 24053 | -3/Research | Spotted B-86 Titan 24197 | -3/Research | Found Spectral Analyzer 24198 | -3/Research | Lost 3 allies 24294 | -3/Research | Discovered new exit (range 5) 24371 | -3/Research | Research terminal network offline 24428 | -3/Research | Found Exp. System Shield 24471 | -3/Research | Repaired Plasma Sword 24661 | -3/Research | Scrapoid reinforcements arrived 24667 | -3/Research | Found Fusion Bomb Launcher 24717 | -3/Research | Found Exp. EM Disruption Field 24847 | -3/Research | Spotted Striker 24857 | -3/Research | Destroyed Striker 24887 | -3/Research | Lost 3 allies 24997 | -3/Research | Identified exit to Quarantine 25113 | -3/Research | Lost 10 allies 25143 | -3/Research | Entered Quarantine 25144 | -3/Quarantine | Build established: Gladiator 25274 | -3/Quarantine | Found Alien Artifact 25274 | -3/Quarantine | Identified Dimensional Node Initializer 25274 | -3/Quarantine | Initialized slip node 25292 | -3/Quarantine | Found Alien Artifact 25585 | -3/Quarantine | Found Alien Artifact 25617 | -3/Quarantine | Found Gamma Bomb Array 25697 | -3/Quarantine | System corruption reached 10% 25998 | -3/Quarantine | Build established: Scavenger-Gladiator 26185 | -3/Quarantine | Found Alien Impact Weapon 26703 | -3/Quarantine | Found Alien Artifact 26703 | -3/Quarantine | Identified Core Reset Matrix 26703 | -3/Quarantine | Identified Core Stripper 26703 | -3/Quarantine | Identified Subatomic Replicator 26703 | -3/Quarantine | Identified Transdimensional Reconstructor 26703 | -3/Quarantine | Used Core Reset Matrix 26707 | -3/Quarantine | Detected hypermatrix surge 26707 | -3/Quarantine | Sensed 9 artifacts in vicinity 26821 | -3/Quarantine | Repaired Plasma Sword 26896 | -3/Quarantine | Repaired Biometal Heavy Treads 26953 | -3/Quarantine | Repaired Hvy. Treads 27005 | -3/Quarantine | Repaired Adv. Sensor Array 27095 | -3/Quarantine | Repaired Plasma Sword 27195 | -3/Quarantine | Found Dimensional Node Initializer 27201 | -3/Quarantine | Found Hpw. Transdimensional Reconstructor 27206 | -3/Quarantine | Found Hpw. Transdimensional Reconstructor 27294 | -3/Quarantine | Build established: Assassin 27421 | -3/Quarantine | Discovered new exit (range 11) 27467 | -3/Quarantine | Found Sigix Broadsword 27526 | -3/Quarantine | Identified exit to Research 27533 | -3/Quarantine | Entered Research 27533 | -2/Research | Evolved 2 slots: Power x1, Utility x1 27610 | -2/Research | Allied Derelicts emerged from ambush trap array 27660 | -2/Research | Discovered new exit (range 11) 27690 | -2/Research | Identified exit to Access 27771 | -2/Research | Spotted B-90 Cyclops 28169 | -2/Research | Discovered exit to Access (range 14) 28215 | -2/Research | Warped through subspace 28216 | -2/Research | Cargo convoy interrupted 28216 | -2/Research | Spotted Executioner 28216 | -2/Research | Warped through subspace 28352 | -2/Research | Used Subatomic Replicator to replicate Sigix Broadsword 28388 | -2/Research | Found Gamma Bomb Array 28420 | -2/Research | Found Exp. Transmission Jammer 28430 | -2/Research | Discovered new exit (range 14) 28474 | -2/Research | Crushed by falling debris 28476 | -2/Research | Crushed by falling debris 28497 | -2/Research | Entered Testing 28808 | -2/Testing | Protovariant out of control (PX-LP2I2QKV6Y) 29262 | -2/Testing | Spotted Fortress 29272 | -2/Testing | Destroyed Fortress 29285 | -2/Testing | Found Exp. EM Shield 29288 | -2/Testing | Found Vortex Chain Reactor 29303 | -2/Testing | Found Exp. Force Field 29431 | -2/Testing | Discovered new exit (range 5) 29431 | -2/Testing | Discovered new exit (range 6) 29501 | -2/Testing | Entered Section 7 29502 | -2/Section 7 | Detected hypermatrix surge 29502 | -2/Section 7 | Sensed 23 artifacts in vicinity 29673 | -2/Section 7 | Found Integrated Reactor 29673 | -2/Section 7 | Installed Integrated Reactor, increased core energy generation (+10) 29824 | -2/Section 7 | System corruption reached 10% 29939 | -2/Section 7 | Found Integrity Redistributor 29960 | -2/Section 7 | Build established: Alien-Gladiator 30281 | -2/Section 7 | Found Spacefold Activator 30667 | -2/Section 7 | Found Adv. Powered Armor 30677 | -2/Section 7 | Spotted S7 Guard 30769 | -2/Section 7 | Destroyed S7 Guard 30776 | -2/Section 7 | Found Hvy. Regenerative Plating 30784 | -2/Section 7 | Found Core Membrane 30784 | -2/Section 7 | Installed Core Membrane, gained immunity to corruption 30923 | -2/Section 7 | Discovered exit to Access (range 15) 31062 | -2/Section 7 | Initialized slip node 31095 | -2/Section 7 | Spotted S7 Guard 31119 | -2/Section 7 | Destroyed S7 Guard 31139 | -2/Section 7 | Found Integrated Thermoelectric Network 31139 | -2/Section 7 | Installed Integrated Thermoelectric Network, gained heat-energy exchange potential 31218 | -2/Section 7 | Found Exp. Core Analyzer 31294 | -2/Section 7 | Spotted Alpha 7 31316 | -2/Section 7 | Destroyed Alpha 7 31345 | -2/Section 7 | Spotted B-99 Colossus 31417 | -2/Section 7 | Destroyed B-99 Colossus 31464 | -2/Section 7 | Found Core Reset Matrix 31466 | -2/Section 7 | Sensed 17 artifacts in vicinity 31519 | -2/Section 7 | Found LRC Inertial Stabilizer 31519 | -2/Section 7 | Installed LRC Inertial Stabilizer, increased mass support (+10) 31528 | -2/Section 7 | Found LRC Energy Well 31528 | -2/Section 7 | Installed LRC Energy Well, increased energy storage capacity (+250) 31531 | -2/Section 7 | Found LRC Inertial Stabilizer 31531 | -2/Section 7 | Installed LRC Inertial Stabilizer, increased mass support (+10) 31544 | -2/Section 7 | Used Integrity Redistributor, redistributed integrity from core (-434) 31545 | -2/Section 7 | Core integrity fell below 50% 31834 | -2/Section 7 | Found Matter Drive 31839 | -2/Section 7 | Found Transdimensional Reconstructor 31842 | -2/Section 7 | Found Transdimensional Reconstructor 32001 | -2/Section 7 | First assault squad dispatched 32198 | -2/Section 7 | Discovered exit to Access (range 4) 32228 | -2/Section 7 | Found Microwarp Drive 32262 | -2/Section 7 | Entered Access 32262 | -1/Access | Evolved 2 slots: Utility x2 32762 | -1/Access | First assault squad dispatched 32785 | -1/Access | Found Exp. Signal Interpreter 32805 | -1/Access | Spotted B-99 Colossus 32924 | -1/Access | Energy Cycler disabled 33064 | -1/Access | Destroyed 7 combat bots 33330 | -1/Access | Crushed by falling debris 33815 | -1/Access | Unchained authorized (6S-H0T) 34117 | -1/Access | Spotted 6S-H0T 34208 | -1/Access | Found Adv. Force Booster 34485 | -1/Access | Discovered new exit (range 8) 34493 | -1/Access | Identified exit to Command 34579 | -1/Access | Entered Command 34829 | -1/Command | First assault squad dispatched 34908 | -1/Command | Spotted Combat Programmer 34973 | -1/Command | Met MAIN.C 34999 | -1/Command | 0b10 Conduit disabled 35010 | -1/Command | Destroyed MAIN.C Shell 35012 | -1/Command | MAIN.C activated Command garrisons 35043 | -1/Command | Spotted M Guard 35050 | -1/Command | Spotted Combat Programmer 35058 | -1/Command | Spotted M Guard 35064 | -1/Command | Core integrity fell below 50% 35096 | -1/Command | Emitted hypermatrix ping 35101 | -1/Command | Assembled emerged from beneath the floor 35102 | -1/Command | Core integrity fell below 20% 35106 | -1/Command | Core destroyed Last Messages --------------- 35097_ Penetrated by EMDS Slug. 35097_ Exp. EM Shield destroyed. 35098_ Hds. Centrium Heavy Treads destroyed. 35100_ Penetrated by EMDS Slug. 35100_ Adv. Melee Analysis Suite destroyed. 35100_ Actuator Array destroyed. 35101_ Assembled emerge from beneath the floor. 35101_ as-87424 sneak attacks. 35101_ as-91336 destroyed. 35101_ as-57515 destroyed. 35101_ as-87424 destroyed. 35102_ as-87556 destroyed. 35102_ as-03835 destroyed. 35102_ as-49764 destroyed. 35102_ Biometal Heavy Treads destroyed. 35102_ as-57849 destroyed. 35103_ EMDS Slug penetrates 0b10 Conduit. 35103_ Penetrated by EMDS Slug. 35105_ Knocked back. 35106_ Microwarped (distance 10). Map ----- +----------------------------------------------------+ | ?????????????????????????????????????????????????? | | ?????????????????????????????????????????????????? | | ?????????????????????????????????????????????????? | | ?????????????????????????????????????????????????? | | ?????????????????????????????????????????????????? | | ?????????????????????????????????????????????????? | | ?????????????????????????????????????????????????? | | ?????????????????????????????????????????????????? | | ?????????????????????????????????????????????????? | | ?????????????????????????????????????????????????? | | ?????????????????????????????????????????????????? | | ?????????????????????????????????????????????????? | | ?????????????????????????????????????????????????? | | ?????????????????????????????????????????????????? | | ?????????????????????????????????????????????????? | | ?????????????????????????????????????????????????? | | ?????????????????????????????????????????????????? | | ?????????????????????????????????????????????????? | | ?????????????????????????????????????????????????? | | ?????????????????????????????????????????????????? | | ?????????????????????????????????????????????????? | | ?????????????????????????????????????????????????? | | ?????????????????????????????????????????????????? | | ??????????????????##################?????????????? | | ????????????????""""" """" #?????????????? | | ???????????????" ""@ #?????????????? | | ???????????????"""" "" ############### | | ????????????????" """"""" + | | ???????????????? """ ; | | ???????????????"? " "" pY ; | | ??????????????"" "" " Y############### | | ?????????????# " """ p #?????????????? | | ?????????????# " #?????????????? | | ?????????????? " [%! % ""#?????????????? | | ???????????????"""""" ! % """"#?????????????? | | ?????????????#"" % """"#?????????????? | | ?????????????# % """""#?????????????? | | ?????????????# M " #?????????????? | | ?????????????# " " " #?????????????? | | ?????????????" " """ " #?????????????? | | ?????????????" " " " """" #?????????????? | | ?????????????" " " " #?????????????? | | ?????????????# """"""" " #?????????????? | | ?????????????# " """ " """"""?"#?????????????? | | ?????????????# """ " " " ????????????????? | | ??????????????#?##???##?########?????????????????? | | ?????????????????????????????????????????????????? | | ?????????????????????????????????????????????????? | | ?????????????????????????????????????????????????? | | ?????????????????????????????????????????????????? | +----------------------------------------------------+ Best States ------------- Heat Dissipation 52 Energy Generation 89 Energy Capacity 1200 Matter Stores 300 Matter Capacity 300 Sight Range 24 Robot Scan Range 16 Terrain Scan Range 20 Terrain Scan Density 210 ECM Strength 2 Jamming Range 22 Power Amplification 30 Corruption Block 20 Armor Coverage 1050 Resistance: TH 30 Resistance: EM 75 Melee Speed Boost 40 Phase Shifting 5 Evasion (%) 45 Targeting Accuracy 20 Melee Accuracy 14 Target Analysis 8 Core Analysis 8 Armor Integrity Analysis 40 Recoil Reduction 5 Force Boost 40 Offensive Hacking 12 Defensive Hacking 20 Authchip Count 2 Item Schematics ----------------- None Robot Schematics ------------------ None Fabricated ------------ Powered Armor | x2 | -5/Factory | Authchip Powered Armor | x2 | -5/Factory | Authchip Powered Armor | x2 | -5/Factory | Authchip Repaired ---------- Hammer | 62% | -9/Materials | Corrupted Plasma Sword | 12% | -3/Research Plasma Sword | 9% | -3/Quarantine Biometal Heavy Treads | 50% | -3/Quarantine Hvy. Treads | 34% | -3/Quarantine Adv. Sensor Array | 20% | -3/Quarantine Plasma Sword | 44% | -3/Quarantine Studied --------- None Alien Tech Used ----------------- Dimensional Node Initializer Core Reset Matrix Sigix Broadsword High-powered Transdimensional Reconstructor Subatomic Replicator Core Stripper Integrated Reactor Core Membrane Integrated Thermoelectric Network Spacefold Activator LRC Inertial Stabilizer LRC Energy Well Integrity Redistributor Matter Drive Microwarp Drive Achievements -------------- Artifact Hunter Challenges ------------ None Game ------ Seed PulsarMetaAutohacker Manual? 0 Play Time 07:42:40 Cumulative 620.2 hours Start 2026.09.13 @ 17:55:53 End 2026.09.14 @ 02:33:26 Sessions 1 Manual Loads 0 Difficulty Rogue Special Mode None Game No. 502 Rogue 502 Adventurer 0 Explorer 0 Win Type - Total 20 Types 12/0/3/1/0/0/0/2/0/2 Lore% 70 Gallery% 73 Achievement% 70 Wizard Run 0 Options --------- Layout 1 ASCII 0 Keyboard 0 Movement Mouse Keybinds 0 Fullscreen 2 Font 24/Cog Map View 50x35 Zoom Use 15% Tactical HUD 1 Map Filters NONE Filters NONE Steam 1 RUN: 75134171-aa38-43c9-9b4e-9339fa19a026